{"text_format":"1","workbook":"xlsx","n_sheets":3,"sheets":["start","dashboard","Data"],"not_rendered":{"charts":1,"images":6,"macros":1,"external_links":0,"defined_names":16,"comments":1,"pivot_tables":2},"unopened":[],"bounds":{"document_bytes":16777216,"sheet_cells":100000,"rows_first":2000,"rows_last":500,"rows_between":2000,"halvings":0,"cell_chars":16384,"cell_head_chars":4096},"cells_cut":0,"cells_raw":0,"read":"whole","date_system":"1900"}

{"sheet":"start","index":0,"n_rows":15,"n_cols":4,"rows_kept":15,"cut":false,"hidden":false,"merged":[]}
[]
[]
[]
[]
[]
[]
[]
[]
[]
[]
[]
[]
[null,null,"WAT:","Het focusinstrument helpt u te bepalen welke locaties het meeste relevant zijn om proactief een visie te ontwikkelen. "]
[null,null,null,"Dit resulteert in een rangschikking van de locaties."]
[null,null,null,"Aan de hand van de weging van criteria kunt u deze rangschikking verfijnen."]

{"sheet":"dashboard","index":1,"n_rows":61,"n_cols":155,"rows_kept":61,"cut":false,"hidden":false,"merged":[]}
[null,null,null,null,null,null,null,null,null,null,null,null,null,null,null,null,null,null,"gemeente","(All)"]
[null,null,null,null,null,null,null,null,null,null,null,null,null,null,null,null,null,null,"TYPE","(All)"]
[null,null,null,null,null,null,null,null,null,null,1]
[null,"Wegingen instellen",null,null,null,null,null,null,null,null,2,null,null,null,null,null,null,null,"Sum of samen"]
[null,null,null,null,null,null,null,null,null,null,3,null,null,null,null,null,null,null,"NAAM","Total"]
[null,"Draagvlak",null,null,null,null,null,null,null,null,4,null,null,null,null,null,null,null,"site 6",-2]
[null,null,null,null,null,null,null,null,null,null,5,null,null,null,null,null,null,null,"site 8",-1]
[null,null,null,null,null,null,null,null,null,null,null,null,null,null,null,null,null,null,"site 5",0]
[null,"Impact",null,null,null,null,null,null,null,null,null,"weging aan of af","weging",null,null,null,null,null,"site 7",0]
[null,null,null,null,null,null,null,null,null,null,"draagvlak",true,1,null,null,null,1,null,"site 10",0]
[null,null,null,null,null,null,null,null,null,null,"verweving",true,1,null,null,null,1,null,"(blank)",0]
[null,"Bereikbaarheid",null,null,null,null,null,null,null,null,"complexiteit",true,1,null,null,null,1,null,"site 11",1]
[null,null,null,null,null,null,null,null,null,null,"impact",true,1,null,null,null,1,null,"site 2",1]
[null,null,null,null,null,null,null,null,null,null,"bereikbaarheid",true,1,null,null,null,1,null,"site 9",1]
[null,"Verwevingsgraad",null,null,null,null,null,null,null,null,"leegstand",true,1,null,null,null,1,null,"site 1",2]
[null,null,null,null,null,null,null,null,null,null,"urgentie",true,1,null,null,null,1,null,"site 3",3]
[null,null,null,null,null,null,null,null,null,null,null,null,null,null,null,null,null,null,"site 4",3]
[null,"Leegstand",null,null,null,null,null,null,null,null,"naar beginscherm",null,null,null,null,null,null,null,"Grand Total",8]
[]
[]
[null,"Urgentie"]
[]
[null,null,null,null,null,null,null,null,null,null,null,null,null,null,null,null,"GEMEENTEN"]
[null,null,null,null,null,null,null,null,null,null,null,null,null,null,null,null,"Anzegem"]
[null,null,null,null,null,null,null,null,null,null,null,null,null,null,null,null,"Avelgem"]
[null,null,null,null,null,null,null,null,null,null,null,null,null,null,null,null,"Deerlijk"]
[null,null,null,null,null,null,null,null,null,null,null,null,null,null,null,null,"Harelbeke"]
[null,null,null,null,null,null,null,null,null,null,null,null,null,null,null,null,"Kortrijk"]
[null,null,null,null,null,null,null,null,null,null,null,null,null,null,null,null,"Kuurne"]
[null,null,null,null,null,null,null,null,null,null,null,null,null,null,null,null,"Lendelede"]
[null,null,null,null,null,null,null,null,null,null,null,null,null,null,null,null,"Menen"]
[null,null,null,null,null,null,null,null,null,null,null,null,null,null,null,null,"Spiere-Helkijn"]
[null,null,null,null,null,null,null,null,null,null,null,null,null,null,null,null,"Waregem"]
[null,null,null,null,null,null,null,null,null,null,null,null,null,null,null,null,"Wervik"]
[null,null,null,null,null,null,null,null,null,null,null,null,null,null,null,null,"Wevelgem"]
[null,null,null,null,null,null,null,null,null,null,null,null,null,null,null,null,"Zwevegem"]
[null,null,null,null,null,null,null,null,null,null,null,null,null,null,null,null,"(blank)"]
[]
[]
[]
[]
[]
[]
[null,"v2"]
[]
[]
[]
[]
[]
[null,null,null,1]
[]
[]
[]
[]
[]
[]
[]
[]
[]
[]
[null,null,null,1,null,null,null,null,null,null,null,null,null,null,null,null,null,null,null,null,null,null,null,null,null,null,null,null,null,null,null,null,null,null,null,null,null,null,null,null,null,null,null,null,null,null,null,null,null,null,null,null,null,null,null,null,null,null,null,null,null,null,null,null,null,null,null,null,null,null,null,null,null,null,null,null,null,null,null,null,null,null,null,null,null,null,null,null,null,null,null,null,null,null,null,null,null,null,null,null,null,null,null,null,null,null,null,null,null,null,null,null,null,null,null,null,null,null,null,null,null,null,null,null,null,null,null,null,null,null,null,null,null,null,null,null,null,null,null,null,null,null,null,null,null,null,null,null,null,null,null,null,null,null,1]

{"sheet":"Data","index":2,"n_rows":1689,"n_cols":16,"rows_kept":1689,"cut":false,"hidden":true,"merged":[]}
["NAAM","ACTIVITEIT","TYPE","gemeente","Draagvlak","Impact","Bereikbaarheid","Verwevingsgraad","Leegstand","Urgentie","wDraagvlak","wImpact","wBereikbaarheid","wVERWEVINGS","wLEEGSTAND","wUrgentie"]
["site 1","leegstand/in herontwikkeling","in herontwikkeling / herontwikkeld","gemeente A",1,1,0,0,-1,1,{"$f":"E2*wDraagvlak*CDraagvlak","v":1},{"$f":"F2*wImpact*CImpact","v":1},{"$f":"G2*wBereikbaarheid*CBereikbaar","v":0},{"$f":"H2*wVerweving*CVerweving","v":0},{"$f":"I2*wLeegstand*CLeegstand","v":-1},{"$f":"J2*wUrgentie*CUrgentie","v":1}]
["site 2","textiel","in herontwikkeling / herontwikkeld","gemeente A",0,1,0,-1,0,1,0,1,0,-1,0,1]
["site 3","leegstand","leegstand","gemeente B",0,1,0,0,1,1,0,1,0,0,1,1]
["site 4","drankencentrale","actief","gemeente B",1,0,0,0,1,1,1,0,0,0,1,1]
["site 5","autogarage","leegstand","gemeente B",0,-1,0,0,1,0,0,-1,0,0,1,0]
["site 6","bouwmaterialen","in herontwikkeling / herontwikkeld","gemeente B",0,0,0,0,-1,-1,0,0,0,0,-1,-1]
["site 7","boekhoudkantoor (laatste activiteit, nu leegstaand","leegstand","gemeente B",-1,0,0,0,1,0,-1,0,0,0,1,0]
["site 8","ex groothandel handdoeken/zeepartikelen","leegstand","gemeente B",0,-1,0,-1,1,0,0,-1,0,-1,1,0]
["site 9","leegstand","actief","gemeente B",1,1,0,0,0,-1,1,1,0,0,0,-1]
["site 10","textiel","in herontwikkeling / herontwikkeld","gemeente C",0,1,0,-1,1,-1,0,1,0,-1,1,-1]
["site 11","productie meststoffen e.a.","in herontwikkeling / herontwikkeld","gemeente D",1,0,0,0,-1,1,1,0,0,0,-1,1]
[null,null,null,null,null,null,null,null,null,null,0,0,0,0,0,0]
[null,null,null,null,null,null,null,null,null,null,0,0,0,0,0,0]
[null,null,null,null,null,null,null,null,null,null,0,0,0,0,0,0]
[null,null,null,null,null,null,null,null,null,null,0,0,0,0,0,0]
[null,null,null,null,null,null,null,null,null,null,0,0,0,0,0,0]
[null,null,null,null,null,null,null,null,null,null,0,0,0,0,0,0]
[null,null,null,null,null,null,null,null,null,null,0,0,0,0,0,0]
[null,null,null,null,null,null,null,null,null,null,0,0,0,0,0,0]
[null,null,null,null,null,null,null,null,null,null,0,0,0,0,0,0]
[null,null,null,null,null,null,null,null,null,null,0,0,0,0,0,0]
[null,null,null,null,null,null,null,null,null,null,0,0,0,0,0,0]
[null,null,null,null,null,null,null,null,null,null,0,0,0,0,0,0]
[null,null,null,null,null,null,null,null,null,null,0,0,0,0,0,0]
[null,null,null,null,null,null,null,null,null,null,0,0,0,0,0,0]
[null,null,null,null,null,null,null,null,null,null,0,0,0,0,0,0]
[null,null,null,null,null,null,null,null,null,null,0,0,0,0,0,0]
[null,null,null,null,null,null,null,null,null,null,0,0,0,0,0,0]
[null,null,null,null,null,null,null,null,null,null,0,0,0,0,0,0]
[null,null,null,null,null,null,null,null,null,null,0,0,0,0,0,0]
[null,null,null,null,null,null,null,null,null,null,0,0,0,0,0,0]
[null,null,null,null,null,null,null,null,null,null,0,0,0,0,0,0]
[null,null,null,null,null,null,null,null,null,null,0,0,0,0,0,0]
[null,null,null,null,null,null,null,null,null,null,0,0,0,0,0,0]
[null,null,null,null,null,null,null,null,null,null,0,0,0,0,0,0]
[null,null,null,null,null,null,null,null,null,null,0,0,0,0,0,0]
[null,null,null,null,null,null,null,null,null,null,0,0,0,0,0,0]
[null,null,null,null,null,null,null,null,null,null,0,0,0,0,0,0]
[null,null,null,null,null,null,null,null,null,null,0,0,0,0,0,0]
[null,null,null,null,null,null,null,null,null,null,0,0,0,0,0,0]
[null,null,null,null,null,null,null,null,null,null,0,0,0,0,0,0]
[null,null,null,null,null,null,null,null,null,null,0,0,0,0,0,0]
[null,null,null,null,null,null,null,null,null,null,0,0,0,0,0,0]
[null,null,null,null,null,null,null,null,null,null,0,0,0,0,0,0]
[null,null,null,null,null,null,null,null,null,null,0,0,0,0,0,0]
[null,null,null,null,null,null,null,null,null,null,0,0,0,0,0,0]
[null,null,null,null,null,null,null,null,null,null,0,0,0,0,0,0]
[null,null,null,null,null,null,null,null,null,null,0,0,0,0,0,0]
[null,null,null,null,null,null,null,null,null,null,0,0,0,0,0,0]
[null,null,null,null,null,null,null,null,null,null,0,0,0,0,0,0]
[null,null,null,null,null,null,null,null,null,null,0,0,0,0,0,0]
[null,null,null,null,null,null,null,null,null,null,0,0,0,0,0,0]
[null,null,null,null,null,null,null,null,null,null,0,0,0,0,0,0]
[null,null,null,null,null,null,null,null,null,null,0,0,0,0,0,0]
[null,null,null,null,null,null,null,null,null,null,0,0,0,0,0,0]
[null,null,null,null,null,null,null,null,null,null,0,0,0,0,0,0]
[null,null,null,null,null,null,null,null,null,null,0,0,0,0,0,0]
[null,null,null,null,null,null,null,null,null,null,0,0,0,0,0,0]
[null,null,null,null,null,null,null,null,null,null,0,0,0,0,0,0]
[null,null,null,null,null,null,null,null,null,null,0,0,0,0,0,0]
[null,null,null,null,null,null,null,null,null,null,0,0,0,0,0,0]
[null,null,null,null,null,null,null,null,null,null,0,0,0,0,0,0]
[null,null,null,null,null,null,null,null,null,null,0,0,0,0,0,0]
[null,null,null,null,null,null,null,null,null,null,0,0,0,0,0,0]
[null,null,null,null,null,null,null,null,null,null,{"$f":"E66*wDraagvlak*CDraagvlak","v":0},{"$f":"F66*wImpact*CImpact","v":0},{"$f":"G66*wBereikbaarheid*CBereikbaar","v":0},{"$f":"H66*wVerweving*CVerweving","v":0},{"$f":"I66*wLeegstand*CLeegstand","v":0},{"$f":"J66*wUrgentie*CUrgentie","v":0}]
[null,null,null,null,null,null,null,null,null,null,0,0,0,0,0,0]
[null,null,null,null,null,null,null,null,null,null,0,0,0,0,0,0]
[null,null,null,null,null,null,null,null,null,null,0,0,0,0,0,0]
[null,null,null,null,null,null,null,null,null,null,0,0,0,0,0,0]
[null,null,null,null,null,null,null,null,null,null,0,0,0,0,0,0]
[null,null,null,null,null,null,null,null,null,null,0,0,0,0,0,0]
[null,null,null,null,null,null,null,null,null,null,0,0,0,0,0,0]
[null,null,null,null,null,null,null,null,null,null,0,0,0,0,0,0]
[null,null,null,null,null,null,null,null,null,null,0,0,0,0,0,0]
[null,null,null,null,null,null,null,null,null,null,0,0,0,0,0,0]
[null,null,null,null,null,null,null,null,null,null,0,0,0,0,0,0]
[null,null,null,null,null,null,null,null,null,null,0,0,0,0,0,0]
[null,null,null,null,null,null,null,null,null,null,0,0,0,0,0,0]
[null,null,null,null,null,null,null,null,null,null,0,0,0,0,0,0]
[null,null,null,null,null,null,null,null,null,null,0,0,0,0,0,0]
[null,null,null,null,null,null,null,null,null,null,0,0,0,0,0,0]
[null,null,null,null,null,null,null,null,null,null,0,0,0,0,0,0]
[null,null,null,null,null,null,null,null,null,null,0,0,0,0,0,0]
[null,null,null,null,null,null,null,null,null,null,0,0,0,0,0,0]
[null,null,null,null,null,null,null,null,null,null,0,0,0,0,0,0]
[null,null,null,null,null,null,null,null,null,null,0,0,0,0,0,0]
[null,null,null,null,null,null,null,null,null,null,0,0,0,0,0,0]
[null,null,null,null,null,null,null,null,null,null,0,0,0,0,0,0]
[null,null,null,null,null,null,null,null,null,null,0,0,0,0,0,0]
[null,null,null,null,null,null,null,null,null,null,0,0,0,0,0,0]
[null,null,null,null,null,null,null,null,null,null,0,0,0,0,0,0]
[null,null,null,null,null,null,null,null,null,null,0,0,0,0,0,0]
[null,null,null,null,null,null,null,null,null,null,0,0,0,0,0,0]
[null,null,null,null,null,null,null,null,null,null,0,0,0,0,0,0]
[null,null,null,null,null,null,null,null,null,null,0,0,0,0,0,0]
[null,null,null,null,null,null,null,null,null,null,0,0,0,0,0,0]
[null,null,null,null,null,null,null,null,null,null,0,0,0,0,0,0]
[null,null,null,null,null,null,null,null,null,null,0,0,0,0,0,0]
[null,null,null,null,null,null,null,null,null,null,0,0,0,0,0,0]
[null,null,null,null,null,null,null,null,null,null,0,0,0,0,0,0]
[null,null,null,null,null,null,null,null,null,null,0,0,0,0,0,0]
[null,null,null,null,null,null,null,null,null,null,0,0,0,0,0,0]
[null,null,null,null,null,null,null,null,null,null,0,0,0,0,0,0]
[null,null,null,null,null,null,null,null,null,null,0,0,0,0,0,0]
[null,null,null,null,null,null,null,null,null,null,0,0,0,0,0,0]
[null,null,null,null,null,null,null,null,null,null,0,0,0,0,0,0]
[null,null,null,null,null,null,null,null,null,null,0,0,0,0,0,0]
[null,null,null,null,null,null,null,null,null,null,0,0,0,0,0,0]
[null,null,null,null,null,null,null,null,null,null,0,0,0,0,0,0]
[null,null,null,null,null,null,null,null,null,null,0,0,0,0,0,0]
[null,null,null,null,null,null,null,null,null,null,0,0,0,0,0,0]
[null,null,null,null,null,null,null,null,null,null,0,0,0,0,0,0]
[null,null,null,null,null,null,null,null,null,null,0,0,0,0,0,0]
[null,null,null,null,null,null,null,null,null,null,0,0,0,0,0,0]
[null,null,null,null,null,null,null,null,null,null,0,0,0,0,0,0]
[null,null,null,null,null,null,null,null,null,null,0,0,0,0,0,0]
[null,null,null,null,null,null,null,null,null,null,0,0,0,0,0,0]
[null,null,null,null,null,null,null,null,null,null,0,0,0,0,0,0]
[null,null,null,null,null,null,null,null,null,null,0,0,0,0,0,0]
[null,null,null,null,null,null,null,null,null,null,0,0,0,0,0,0]
[null,null,null,null,null,null,null,null,null,null,0,0,0,0,0,0]
[null,null,null,null,null,null,null,null,null,null,0,0,0,0,0,0]
[null,null,null,null,null,null,null,null,null,null,0,0,0,0,0,0]
[null,null,null,null,null,null,null,null,null,null,0,0,0,0,0,0]
[null,null,null,null,null,null,null,null,null,null,0,0,0,0,0,0]
[null,null,null,null,null,null,null,null,null,null,0,0,0,0,0,0]
[null,null,null,null,null,null,null,null,null,null,0,0,0,0,0,0]
[null,null,null,null,null,null,null,null,null,null,0,0,0,0,0,0]
[null,null,null,null,null,null,null,null,null,null,{"$f":"E130*wDraagvlak*CDraagvlak","v":0},{"$f":"F130*wImpact*CImpact","v":0},{"$f":"G130*wBereikbaarheid*CBereikbaar","v":0},{"$f":"H130*wVerweving*CVerweving","v":0},{"$f":"I130*wLeegstand*CLeegstand","v":0},{"$f":"J130*wUrgentie*CUrgentie","v":0}]
[null,null,null,null,null,null,null,null,null,null,0,0,0,0,0,0]
[null,null,null,null,null,null,null,null,null,null,0,0,0,0,0,0]
[null,null,null,null,null,null,null,null,null,null,0,0,0,0,0,0]
[null,null,null,null,null,null,null,null,null,null,0,0,0,0,0,0]
[null,null,null,null,null,null,null,null,null,null,0,0,0,0,0,0]
[null,null,null,null,null,null,null,null,null,null,0,0,0,0,0,0]
[null,null,null,null,null,null,null,null,null,null,0,0,0,0,0,0]
[null,null,null,null,null,null,null,null,null,null,0,0,0,0,0,0]
[null,null,null,null,null,null,null,null,null,null,0,0,0,0,0,0]
[null,null,null,null,null,null,null,null,null,null,0,0,0,0,0,0]
[null,null,null,null,null,null,null,null,null,null,0,0,0,0,0,0]
[null,null,null,null,null,null,null,null,null,null,0,0,0,0,0,0]
[null,null,null,null,null,null,null,null,null,null,0,0,0,0,0,0]
[null,null,null,null,null,null,null,null,null,null,0,0,0,0,0,0]
[null,null,null,null,null,null,null,null,null,null,0,0,0,0,0,0]
[null,null,null,null,null,null,null,null,null,null,0,0,0,0,0,0]
[null,null,null,null,null,null,null,null,null,null,0,0,0,0,0,0]
[null,null,null,null,null,null,null,null,null,null,0,0,0,0,0,0]
[null,null,null,null,null,null,null,null,null,null,0,0,0,0,0,0]
[null,null,null,null,null,null,null,null,null,null,0,0,0,0,0,0]
[null,null,null,null,null,null,null,null,null,null,0,0,0,0,0,0]
[null,null,null,null,null,null,null,null,null,null,0,0,0,0,0,0]
[null,null,null,null,null,null,null,null,null,null,0,0,0,0,0,0]
[null,null,null,null,null,null,null,null,null,null,0,0,0,0,0,0]
[null,null,null,null,null,null,null,null,null,null,0,0,0,0,0,0]
[null,null,null,null,null,null,null,null,null,null,0,0,0,0,0,0]
[null,null,null,null,null,null,null,null,null,null,0,0,0,0,0,0]
[null,null,null,null,null,null,null,null,null,null,0,0,0,0,0,0]
[null,null,null,null,null,null,null,null,null,null,0,0,0,0,0,0]
[null,null,null,null,null,null,null,null,null,null,0,0,0,0,0,0]
[null,null,null,null,null,null,null,null,null,null,0,0,0,0,0,0]
[null,null,null,null,null,null,null,null,null,null,0,0,0,0,0,0]
[null,null,null,null,null,null,null,null,null,null,0,0,0,0,0,0]
[null,null,null,null,null,null,null,null,null,null,0,0,0,0,0,0]
[null,null,null,null,null,null,null,null,null,null,0,0,0,0,0,0]
[null,null,null,null,null,null,null,null,null,null,0,0,0,0,0,0]
[null,null,null,null,null,null,null,null,null,null,0,0,0,0,0,0]
[null,null,null,null,null,null,null,null,null,null,0,0,0,0,0,0]
[null,null,null,null,null,null,null,null,null,null,0,0,0,0,0,0]
[null,null,null,null,null,null,null,null,null,null,0,0,0,0,0,0]
[null,null,null,null,null,null,null,null,null,null,0,0,0,0,0,0]
[null,null,null,null,null,null,null,null,null,null,0,0,0,0,0,0]
[null,null,null,null,null,null,null,null,null,null,0,0,0,0,0,0]
[null,null,null,null,null,null,null,null,null,null,0,0,0,0,0,0]
[null,null,null,null,null,null,null,null,null,null,0,0,0,0,0,0]
[null,null,null,null,null,null,null,null,null,null,0,0,0,0,0,0]
[null,null,null,null,null,null,null,null,null,null,0,0,0,0,0,0]
[null,null,null,null,null,null,null,null,null,null,0,0,0,0,0,0]
[null,null,null,null,null,null,null,null,null,null,0,0,0,0,0,0]
[null,null,null,null,null,null,null,null,null,null,0,0,0,0,0,0]
[null,null,null,null,null,null,null,null,null,null,0,0,0,0,0,0]
[null,null,null,null,null,null,null,null,null,null,0,0,0,0,0,0]
[null,null,null,null,null,null,null,null,null,null,0,0,0,0,0,0]
[null,null,null,null,null,null,null,null,null,null,0,0,0,0,0,0]
[null,null,null,null,null,null,null,null,null,null,0,0,0,0,0,0]
[null,null,null,null,null,null,null,null,null,null,0,0,0,0,0,0]
[null,null,null,null,null,null,null,null,null,null,0,0,0,0,0,0]
[null,null,null,null,null,null,null,null,null,null,0,0,0,0,0,0]
[null,null,null,null,null,null,null,null,null,null,0,0,0,0,0,0]
[null,null,null,null,null,null,null,null,null,null,0,0,0,0,0,0]
[null,null,null,null,null,null,null,null,null,null,0,0,0,0,0,0]
[null,null,null,null,null,null,null,null,null,null,0,0,0,0,0,0]
[null,null,null,null,null,null,null,null,null,null,0,0,0,0,0,0]
[null,null,null,null,null,null,null,null,null,null,{"$f":"E194*wDraagvlak*CDraagvlak","v":0},{"$f":"F194*wImpact*CImpact","v":0},{"$f":"G194*wBereikbaarheid*CBereikbaar","v":0},{"$f":"H194*wVerweving*CVerweving","v":0},{"$f":"I194*wLeegstand*CLeegstand","v":0},{"$f":"J194*wUrgentie*CUrgentie","v":0}]
[null,null,null,null,null,null,null,null,null,null,0,0,0,0,0,0]
[null,null,null,null,null,null,null,null,null,null,0,0,0,0,0,0]
[null,null,null,null,null,null,null,null,null,null,0,0,0,0,0,0]
[null,null,null,null,null,null,null,null,null,null,0,0,0,0,0,0]
[null,null,null,null,null,null,null,null,null,null,0,0,0,0,0,0]
[null,null,null,null,null,null,null,null,null,null,0,0,0,0,0,0]
[null,null,null,null,null,null,null,null,null,null,0,0,0,0,0,0]
[null,null,null,null,null,null,null,null,null,null,0,0,0,0,0,0]
[null,null,null,null,null,null,null,null,null,null,0,0,0,0,0,0]
[null,null,null,null,null,null,null,null,null,null,0,0,0,0,0,0]
[null,null,null,null,null,null,null,null,null,null,0,0,0,0,0,0]
[null,null,null,null,null,null,null,null,null,null,0,0,0,0,0,0]
[null,null,null,null,null,null,null,null,null,null,0,0,0,0,0,0]
[null,null,null,null,null,null,null,null,null,null,0,0,0,0,0,0]
[null,null,null,null,null,null,null,null,null,null,0,0,0,0,0,0]
[null,null,null,null,null,null,null,null,null,null,0,0,0,0,0,0]
[null,null,null,null,null,null,null,null,null,null,0,0,0,0,0,0]
[null,null,null,null,null,null,null,null,null,null,0,0,0,0,0,0]
[null,null,null,null,null,null,null,null,null,null,0,0,0,0,0,0]
[null,null,null,null,null,null,null,null,null,null,0,0,0,0,0,0]
[null,null,null,null,null,null,null,null,null,null,0,0,0,0,0,0]
[null,null,null,null,null,null,null,null,null,null,0,0,0,0,0,0]
[null,null,null,null,null,null,null,null,null,null,0,0,0,0,0,0]
[null,null,null,null,null,null,null,null,null,null,0,0,0,0,0,0]
[null,null,null,null,null,null,null,null,null,null,0,0,0,0,0,0]
[null,null,null,null,null,null,null,null,null,null,0,0,0,0,0,0]
[null,null,null,null,null,null,null,null,null,null,0,0,0,0,0,0]
[null,null,null,null,null,null,null,null,null,null,0,0,0,0,0,0]
[null,null,null,null,null,null,null,null,null,null,0,0,0,0,0,0]
[null,null,null,null,null,null,null,null,null,null,0,0,0,0,0,0]
[null,null,null,null,null,null,null,null,null,null,0,0,0,0,0,0]
[null,null,null,null,null,null,null,null,null,null,0,0,0,0,0,0]
[null,null,null,null,null,null,null,null,null,null,0,0,0,0,0,0]
[null,null,null,null,null,null,null,null,null,null,0,0,0,0,0,0]
[null,null,null,null,null,null,null,null,null,null,0,0,0,0,0,0]
[null,null,null,null,null,null,null,null,null,null,0,0,0,0,0,0]
[null,null,null,null,null,null,null,null,null,null,0,0,0,0,0,0]
[null,null,null,null,null,null,null,null,null,null,0,0,0,0,0,0]
[null,null,null,null,null,null,null,null,null,null,0,0,0,0,0,0]
[null,null,null,null,null,null,null,null,null,null,0,0,0,0,0,0]
[null,null,null,null,null,null,null,null,null,null,0,0,0,0,0,0]
[null,null,null,null,null,null,null,null,null,null,0,0,0,0,0,0]
[null,null,null,null,null,null,null,null,null,null,0,0,0,0,0,0]
[null,null,null,null,null,null,null,null,null,null,0,0,0,0,0,0]
[null,null,null,null,null,null,null,null,null,null,0,0,0,0,0,0]
[null,null,null,null,null,null,null,null,null,null,0,0,0,0,0,0]
[null,null,null,null,null,null,null,null,null,null,0,0,0,0,0,0]
[null,null,null,null,null,null,null,null,null,null,0,0,0,0,0,0]
[null,null,null,null,null,null,null,null,null,null,0,0,0,0,0,0]
[null,null,null,null,null,null,null,null,null,null,0,0,0,0,0,0]
[null,null,null,null,null,null,null,null,null,null,0,0,0,0,0,0]
[null,null,null,null,null,null,null,null,null,null,0,0,0,0,0,0]
[null,null,null,null,null,null,null,null,null,null,0,0,0,0,0,0]
[null,null,null,null,null,null,null,null,null,null,0,0,0,0,0,0]
[null,null,null,null,null,null,null,null,null,null,0,0,0,0,0,0]
[null,null,null,null,null,null,null,null,null,null,0,0,0,0,0,0]
[null,null,null,null,null,null,null,null,null,null,0,0,0,0,0,0]
[null,null,null,null,null,null,null,null,null,null,0,0,0,0,0,0]
[null,null,null,null,null,null,null,null,null,null,0,0,0,0,0,0]
[null,null,null,null,null,null,null,null,null,null,0,0,0,0,0,0]
[null,null,null,null,null,null,null,null,null,null,0,0,0,0,0,0]
[null,null,null,null,null,null,null,null,null,null,0,0,0,0,0,0]
[null,null,null,null,null,null,null,null,null,null,0,0,0,0,0,0]
[null,null,null,null,null,null,null,null,null,null,{"$f":"E258*wDraagvlak*CDraagvlak","v":0},{"$f":"F258*wImpact*CImpact","v":0},{"$f":"G258*wBereikbaarheid*CBereikbaar","v":0},{"$f":"H258*wVerweving*CVerweving","v":0},{"$f":"I258*wLeegstand*CLeegstand","v":0},{"$f":"J258*wUrgentie*CUrgentie","v":0}]
[null,null,null,null,null,null,null,null,null,null,0,0,0,0,0,0]
[null,null,null,null,null,null,null,null,null,null,0,0,0,0,0,0]
[null,null,null,null,null,null,null,null,null,null,0,0,0,0,0,0]
[null,null,null,null,null,null,null,null,null,null,0,0,0,0,0,0]
[null,null,null,null,null,null,null,null,null,null,0,0,0,0,0,0]
[null,null,null,null,null,null,null,null,null,null,0,0,0,0,0,0]
[null,null,null,null,null,null,null,null,null,null,0,0,0,0,0,0]
[null,null,null,null,null,null,null,null,null,null,0,0,0,0,0,0]
[null,null,null,null,null,null,null,null,null,null,0,0,0,0,0,0]
[null,null,null,null,null,null,null,null,null,null,0,0,0,0,0,0]
[null,null,null,null,null,null,null,null,null,null,0,0,0,0,0,0]
[null,null,null,null,null,null,null,null,null,null,0,0,0,0,0,0]
[null,null,null,null,null,null,null,null,null,null,0,0,0,0,0,0]
[null,null,null,null,null,null,null,null,null,null,0,0,0,0,0,0]
[null,null,null,null,null,null,null,null,null,null,0,0,0,0,0,0]
[null,null,null,null,null,null,null,null,null,null,0,0,0,0,0,0]
[null,null,null,null,null,null,null,null,null,null,0,0,0,0,0,0]
[null,null,null,null,null,null,null,null,null,null,0,0,0,0,0,0]
[null,null,null,null,null,null,null,null,null,null,0,0,0,0,0,0]
[null,null,null,null,null,null,null,null,null,null,0,0,0,0,0,0]
[null,null,null,null,null,null,null,null,null,null,0,0,0,0,0,0]
[null,null,null,null,null,null,null,null,null,null,0,0,0,0,0,0]
[null,null,null,null,null,null,null,null,null,null,0,0,0,0,0,0]
[null,null,null,null,null,null,null,null,null,null,0,0,0,0,0,0]
[null,null,null,null,null,null,null,null,null,null,0,0,0,0,0,0]
[null,null,null,null,null,null,null,null,null,null,0,0,0,0,0,0]
[null,null,null,null,null,null,null,null,null,null,0,0,0,0,0,0]
[null,null,null,null,null,null,null,null,null,null,0,0,0,0,0,0]
[null,null,null,null,null,null,null,null,null,null,0,0,0,0,0,0]
[null,null,null,null,null,null,null,null,null,null,0,0,0,0,0,0]
[null,null,null,null,null,null,null,null,null,null,0,0,0,0,0,0]
[null,null,null,null,null,null,null,null,null,null,0,0,0,0,0,0]
[null,null,null,null,null,null,null,null,null,null,0,0,0,0,0,0]
[null,null,null,null,null,null,null,null,null,null,0,0,0,0,0,0]
[null,null,null,null,null,null,null,null,null,null,0,0,0,0,0,0]
[null,null,null,null,null,null,null,null,null,null,0,0,0,0,0,0]
[null,null,null,null,null,null,null,null,null,null,0,0,0,0,0,0]
[null,null,null,null,null,null,null,null,null,null,0,0,0,0,0,0]
[null,null,null,null,null,null,null,null,null,null,0,0,0,0,0,0]
[null,null,null,null,null,null,null,null,null,null,0,0,0,0,0,0]
[null,null,null,null,null,null,null,null,null,null,0,0,0,0,0,0]
[null,null,null,null,null,null,null,null,null,null,0,0,0,0,0,0]
[null,null,null,null,null,null,null,null,null,null,0,0,0,0,0,0]
[null,null,null,null,null,null,null,null,null,null,0,0,0,0,0,0]
[null,null,null,null,null,null,null,null,null,null,0,0,0,0,0,0]
[null,null,null,null,null,null,null,null,null,null,0,0,0,0,0,0]
[null,null,null,null,null,null,null,null,null,null,0,0,0,0,0,0]
[null,null,null,null,null,null,null,null,null,null,0,0,0,0,0,0]
[null,null,null,null,null,null,null,null,null,null,0,0,0,0,0,0]
[null,null,null,null,null,null,null,null,null,null,0,0,0,0,0,0]
[null,null,null,null,null,null,null,null,null,null,0,0,0,0,0,0]
[null,null,null,null,null,null,null,null,null,null,0,0,0,0,0,0]
[null,null,null,null,null,null,null,null,null,null,0,0,0,0,0,0]
[null,null,null,null,null,null,null,null,null,null,0,0,0,0,0,0]
[null,null,null,null,null,null,null,null,null,null,0,0,0,0,0,0]
[null,null,null,null,null,null,null,null,null,null,0,0,0,0,0,0]
[null,null,null,null,null,null,null,null,null,null,0,0,0,0,0,0]
[null,null,null,null,null,null,null,null,null,null,0,0,0,0,0,0]
[null,null,null,null,null,null,null,null,null,null,0,0,0,0,0,0]
[null,null,null,null,null,null,null,null,null,null,0,0,0,0,0,0]
[null,null,null,null,null,null,null,null,null,null,0,0,0,0,0,0]
[null,null,null,null,null,null,null,null,null,null,0,0,0,0,0,0]
[null,null,null,null,null,null,null,null,null,null,0,0,0,0,0,0]
[null,null,null,null,null,null,null,null,null,null,{"$f":"E322*wDraagvlak*CDraagvlak","v":0},{"$f":"F322*wImpact*CImpact","v":0},{"$f":"G322*wBereikbaarheid*CBereikbaar","v":0},{"$f":"H322*wVerweving*CVerweving","v":0},{"$f":"I322*wLeegstand*CLeegstand","v":0},{"$f":"J322*wUrgentie*CUrgentie","v":0}]
[null,null,null,null,null,null,null,null,null,null,0,0,0,0,0,0]
[null,null,null,null,null,null,null,null,null,null,0,0,0,0,0,0]
[null,null,null,null,null,null,null,null,null,null,0,0,0,0,0,0]
[null,null,null,null,null,null,null,null,null,null,0,0,0,0,0,0]
[null,null,null,null,null,null,null,null,null,null,0,0,0,0,0,0]
[null,null,null,null,null,null,null,null,null,null,0,0,0,0,0,0]
[null,null,null,null,null,null,null,null,null,null,0,0,0,0,0,0]
[null,null,null,null,null,null,null,null,null,null,0,0,0,0,0,0]
[null,null,null,null,null,null,null,null,null,null,0,0,0,0,0,0]
[null,null,null,null,null,null,null,null,null,null,0,0,0,0,0,0]
[null,null,null,null,null,null,null,null,null,null,0,0,0,0,0,0]
[null,null,null,null,null,null,null,null,null,null,0,0,0,0,0,0]
[null,null,null,null,null,null,null,null,null,null,0,0,0,0,0,0]
[null,null,null,null,null,null,null,null,null,null,0,0,0,0,0,0]
[null,null,null,null,null,null,null,null,null,null,0,0,0,0,0,0]
[null,null,null,null,null,null,null,null,null,null,0,0,0,0,0,0]
[null,null,null,null,null,null,null,null,null,null,0,0,0,0,0,0]
[null,null,null,null,null,null,null,null,null,null,0,0,0,0,0,0]
[null,null,null,null,null,null,null,null,null,null,0,0,0,0,0,0]
[null,null,null,null,null,null,null,null,null,null,0,0,0,0,0,0]
[null,null,null,null,null,null,null,null,null,null,0,0,0,0,0,0]
[null,null,null,null,null,null,null,null,null,null,0,0,0,0,0,0]
[null,null,null,null,null,null,null,null,null,null,0,0,0,0,0,0]
[null,null,null,null,null,null,null,null,null,null,0,0,0,0,0,0]
[null,null,null,null,null,null,null,null,null,null,0,0,0,0,0,0]
[null,null,null,null,null,null,null,null,null,null,0,0,0,0,0,0]
[null,null,null,null,null,null,null,null,null,null,0,0,0,0,0,0]
[null,null,null,null,null,null,null,null,null,null,0,0,0,0,0,0]
[null,null,null,null,null,null,null,null,null,null,0,0,0,0,0,0]
[null,null,null,null,null,null,null,null,null,null,0,0,0,0,0,0]
[null,null,null,null,null,null,null,null,null,null,0,0,0,0,0,0]
[null,null,null,null,null,null,null,null,null,null,0,0,0,0,0,0]
[null,null,null,null,null,null,null,null,null,null,0,0,0,0,0,0]
[null,null,null,null,null,null,null,null,null,null,0,0,0,0,0,0]
[null,null,null,null,null,null,null,null,null,null,0,0,0,0,0,0]
[null,null,null,null,null,null,null,null,null,null,0,0,0,0,0,0]
[null,null,null,null,null,null,null,null,null,null,0,0,0,0,0,0]
[null,null,null,null,null,null,null,null,null,null,0,0,0,0,0,0]
[null,null,null,null,null,null,null,null,null,null,0,0,0,0,0,0]
[null,null,null,null,null,null,null,null,null,null,0,0,0,0,0,0]
[null,null,null,null,null,null,null,null,null,null,0,0,0,0,0,0]
[null,null,null,null,null,null,null,null,null,null,0,0,0,0,0,0]
[null,null,null,null,null,null,null,null,null,null,0,0,0,0,0,0]
[null,null,null,null,null,null,null,null,null,null,0,0,0,0,0,0]
[null,null,null,null,null,null,null,null,null,null,0,0,0,0,0,0]
[null,null,null,null,null,null,null,null,null,null,0,0,0,0,0,0]
[null,null,null,null,null,null,null,null,null,null,0,0,0,0,0,0]
[null,null,null,null,null,null,null,null,null,null,0,0,0,0,0,0]
[null,null,null,null,null,null,null,null,null,null,0,0,0,0,0,0]
[null,null,null,null,null,null,null,null,null,null,0,0,0,0,0,0]
[null,null,null,null,null,null,null,null,null,null,0,0,0,0,0,0]
[null,null,null,null,null,null,null,null,null,null,0,0,0,0,0,0]
[null,null,null,null,null,null,null,null,null,null,0,0,0,0,0,0]
[null,null,null,null,null,null,null,null,null,null,0,0,0,0,0,0]
[null,null,null,null,null,null,null,null,null,null,0,0,0,0,0,0]
[null,null,null,null,null,null,null,null,null,null,0,0,0,0,0,0]
[null,null,null,null,null,null,null,null,null,null,0,0,0,0,0,0]
[null,null,null,null,null,null,null,null,null,null,0,0,0,0,0,0]
[null,null,null,null,null,null,null,null,null,null,0,0,0,0,0,0]
[null,null,null,null,null,null,null,null,null,null,0,0,0,0,0,0]
[null,null,null,null,null,null,null,null,null,null,0,0,0,0,0,0]
[null,null,null,null,null,null,null,null,null,null,0,0,0,0,0,0]
[null,null,null,null,null,null,null,null,null,null,0,0,0,0,0,0]
[null,null,null,null,null,null,null,null,null,null,{"$f":"E386*wDraagvlak*CDraagvlak","v":0},{"$f":"F386*wImpact*CImpact","v":0},{"$f":"G386*wBereikbaarheid*CBereikbaar","v":0},{"$f":"H386*wVerweving*CVerweving","v":0},{"$f":"I386*wLeegstand*CLeegstand","v":0},{"$f":"J386*wUrgentie*CUrgentie","v":0}]
[null,null,null,null,null,null,null,null,null,null,0,0,0,0,0,0]
[null,null,null,null,null,null,null,null,null,null,0,0,0,0,0,0]
[null,null,null,null,null,null,null,null,null,null,0,0,0,0,0,0]
[null,null,null,null,null,null,null,null,null,null,0,0,0,0,0,0]
[null,null,null,null,null,null,null,null,null,null,0,0,0,0,0,0]
[null,null,null,null,null,null,null,null,null,null,0,0,0,0,0,0]
[null,null,null,null,null,null,null,null,null,null,0,0,0,0,0,0]
[null,null,null,null,null,null,null,null,null,null,0,0,0,0,0,0]
[null,null,null,null,null,null,null,null,null,null,0,0,0,0,0,0]
[null,null,null,null,null,null,null,null,null,null,0,0,0,0,0,0]
[null,null,null,null,null,null,null,null,null,null,0,0,0,0,0,0]
[null,null,null,null,null,null,null,null,null,null,0,0,0,0,0,0]
[null,null,null,null,null,null,null,null,null,null,0,0,0,0,0,0]
[null,null,null,null,null,null,null,null,null,null,0,0,0,0,0,0]
[null,null,null,null,null,null,null,null,null,null,0,0,0,0,0,0]
[null,null,null,null,null,null,null,null,null,null,0,0,0,0,0,0]
[null,null,null,null,null,null,null,null,null,null,0,0,0,0,0,0]
[null,null,null,null,null,null,null,null,null,null,0,0,0,0,0,0]
[null,null,null,null,null,null,null,null,null,null,0,0,0,0,0,0]
[null,null,null,null,null,null,null,null,null,null,0,0,0,0,0,0]
[null,null,null,null,null,null,null,null,null,null,0,0,0,0,0,0]
[null,null,null,null,null,null,null,null,null,null,0,0,0,0,0,0]
[null,null,null,null,null,null,null,null,null,null,0,0,0,0,0,0]
[null,null,null,null,null,null,null,null,null,null,0,0,0,0,0,0]
[null,null,null,null,null,null,null,null,null,null,0,0,0,0,0,0]
[null,null,null,null,null,null,null,null,null,null,0,0,0,0,0,0]
[null,null,null,null,null,null,null,null,null,null,0,0,0,0,0,0]
[null,null,null,null,null,null,null,null,null,null,0,0,0,0,0,0]
[null,null,null,null,null,null,null,null,null,null,0,0,0,0,0,0]
[null,null,null,null,null,null,null,null,null,null,0,0,0,0,0,0]
[null,null,null,null,null,null,null,null,null,null,0,0,0,0,0,0]
[null,null,null,null,null,null,null,null,null,null,0,0,0,0,0,0]
[null,null,null,null,null,null,null,null,null,null,0,0,0,0,0,0]
[null,null,null,null,null,null,null,null,null,null,0,0,0,0,0,0]
[null,null,null,null,null,null,null,null,null,null,0,0,0,0,0,0]
[null,null,null,null,null,null,null,null,null,null,0,0,0,0,0,0]
[null,null,null,null,null,null,null,null,null,null,0,0,0,0,0,0]
[null,null,null,null,null,null,null,null,null,null,0,0,0,0,0,0]
[null,null,null,null,null,null,null,null,null,null,0,0,0,0,0,0]
[null,null,null,null,null,null,null,null,null,null,0,0,0,0,0,0]
[null,null,null,null,null,null,null,null,null,null,0,0,0,0,0,0]
[null,null,null,null,null,null,null,null,null,null,0,0,0,0,0,0]
[null,null,null,null,null,null,null,null,null,null,0,0,0,0,0,0]
[null,null,null,null,null,null,null,null,null,null,0,0,0,0,0,0]
[null,null,null,null,null,null,null,null,null,null,0,0,0,0,0,0]
[null,null,null,null,null,null,null,null,null,null,0,0,0,0,0,0]
[null,null,null,null,null,null,null,null,null,null,0,0,0,0,0,0]
[null,null,null,null,null,null,null,null,null,null,0,0,0,0,0,0]
[null,null,null,null,null,null,null,null,null,null,0,0,0,0,0,0]
[null,null,null,null,null,null,null,null,null,null,0,0,0,0,0,0]
[null,null,null,null,null,null,null,null,null,null,0,0,0,0,0,0]
[null,null,null,null,null,null,null,null,null,null,0,0,0,0,0,0]
[null,null,null,null,null,null,null,null,null,null,0,0,0,0,0,0]
[null,null,null,null,null,null,null,null,null,null,0,0,0,0,0,0]
[null,null,null,null,null,null,null,null,null,null,0,0,0,0,0,0]
[null,null,null,null,null,null,null,null,null,null,0,0,0,0,0,0]
[null,null,null,null,null,null,null,null,null,null,0,0,0,0,0,0]
[null,null,null,null,null,null,null,null,null,null,0,0,0,0,0,0]
[null,null,null,null,null,null,null,null,null,null,0,0,0,0,0,0]
[null,null,null,null,null,null,null,null,null,null,0,0,0,0,0,0]
[null,null,null,null,null,null,null,null,null,null,0,0,0,0,0,0]
[null,null,null,null,null,null,null,null,null,null,0,0,0,0,0,0]
[null,null,null,null,null,null,null,null,null,null,0,0,0,0,0,0]
[null,null,null,null,null,null,null,null,null,null,{"$f":"E450*wDraagvlak*CDraagvlak","v":0},{"$f":"F450*wImpact*CImpact","v":0},{"$f":"G450*wBereikbaarheid*CBereikbaar","v":0},{"$f":"H450*wVerweving*CVerweving","v":0},{"$f":"I450*wLeegstand*CLeegstand","v":0},{"$f":"J450*wUrgentie*CUrgentie","v":0}]
[null,null,null,null,null,null,null,null,null,null,0,0,0,0,0,0]
[null,null,null,null,null,null,null,null,null,null,0,0,0,0,0,0]
[null,null,null,null,null,null,null,null,null,null,0,0,0,0,0,0]
[null,null,null,null,null,null,null,null,null,null,0,0,0,0,0,0]
[null,null,null,null,null,null,null,null,null,null,0,0,0,0,0,0]
[null,null,null,null,null,null,null,null,null,null,0,0,0,0,0,0]
[null,null,null,null,null,null,null,null,null,null,0,0,0,0,0,0]
[null,null,null,null,null,null,null,null,null,null,0,0,0,0,0,0]
[null,null,null,null,null,null,null,null,null,null,0,0,0,0,0,0]
[null,null,null,null,null,null,null,null,null,null,0,0,0,0,0,0]
[null,null,null,null,null,null,null,null,null,null,0,0,0,0,0,0]
[null,null,null,null,null,null,null,null,null,null,0,0,0,0,0,0]
[null,null,null,null,null,null,null,null,null,null,0,0,0,0,0,0]
[null,null,null,null,null,null,null,null,null,null,0,0,0,0,0,0]
[null,null,null,null,null,null,null,null,null,null,0,0,0,0,0,0]
[null,null,null,null,null,null,null,null,null,null,0,0,0,0,0,0]
[null,null,null,null,null,null,null,null,null,null,0,0,0,0,0,0]
[null,null,null,null,null,null,null,null,null,null,0,0,0,0,0,0]
[null,null,null,null,null,null,null,null,null,null,0,0,0,0,0,0]
[null,null,null,null,null,null,null,null,null,null,0,0,0,0,0,0]
[null,null,null,null,null,null,null,null,null,null,0,0,0,0,0,0]
[null,null,null,null,null,null,null,null,null,null,0,0,0,0,0,0]
[null,null,null,null,null,null,null,null,null,null,0,0,0,0,0,0]
[null,null,null,null,null,null,null,null,null,null,0,0,0,0,0,0]
[null,null,null,null,null,null,null,null,null,null,0,0,0,0,0,0]
[null,null,null,null,null,null,null,null,null,null,0,0,0,0,0,0]
[null,null,null,null,null,null,null,null,null,null,0,0,0,0,0,0]
[null,null,null,null,null,null,null,null,null,null,0,0,0,0,0,0]
[null,null,null,null,null,null,null,null,null,null,0,0,0,0,0,0]
[null,null,null,null,null,null,null,null,null,null,0,0,0,0,0,0]
[null,null,null,null,null,null,null,null,null,null,0,0,0,0,0,0]
[null,null,null,null,null,null,null,null,null,null,0,0,0,0,0,0]
[null,null,null,null,null,null,null,null,null,null,0,0,0,0,0,0]
[null,null,null,null,null,null,null,null,null,null,0,0,0,0,0,0]
[null,null,null,null,null,null,null,null,null,null,0,0,0,0,0,0]
[null,null,null,null,null,null,null,null,null,null,0,0,0,0,0,0]
[null,null,null,null,null,null,null,null,null,null,0,0,0,0,0,0]
[null,null,null,null,null,null,null,null,null,null,0,0,0,0,0,0]
[null,null,null,null,null,null,null,null,null,null,0,0,0,0,0,0]
[null,null,null,null,null,null,null,null,null,null,0,0,0,0,0,0]
[null,null,null,null,null,null,null,null,null,null,0,0,0,0,0,0]
[null,null,null,null,null,null,null,null,null,null,0,0,0,0,0,0]
[null,null,null,null,null,null,null,null,null,null,0,0,0,0,0,0]
[null,null,null,null,null,null,null,null,null,null,0,0,0,0,0,0]
[null,null,null,null,null,null,null,null,null,null,0,0,0,0,0,0]
[null,null,null,null,null,null,null,null,null,null,0,0,0,0,0,0]
[null,null,null,null,null,null,null,null,null,null,0,0,0,0,0,0]
[null,null,null,null,null,null,null,null,null,null,0,0,0,0,0,0]
[null,null,null,null,null,null,null,null,null,null,0,0,0,0,0,0]
[null,null,null,null,null,null,null,null,null,null,0,0,0,0,0,0]
[null,null,null,null,null,null,null,null,null,null,0,0,0,0,0,0]
[null,null,null,null,null,null,null,null,null,null,0,0,0,0,0,0]
[null,null,null,null,null,null,null,null,null,null,0,0,0,0,0,0]
[null,null,null,null,null,null,null,null,null,null,0,0,0,0,0,0]
[null,null,null,null,null,null,null,null,null,null,0,0,0,0,0,0]
[null,null,null,null,null,null,null,null,null,null,0,0,0,0,0,0]
[null,null,null,null,null,null,null,null,null,null,0,0,0,0,0,0]
[null,null,null,null,null,null,null,null,null,null,0,0,0,0,0,0]
[null,null,null,null,null,null,null,null,null,null,0,0,0,0,0,0]
[null,null,null,null,null,null,null,null,null,null,0,0,0,0,0,0]
[null,null,null,null,null,null,null,null,null,null,0,0,0,0,0,0]
[null,null,null,null,null,null,null,null,null,null,0,0,0,0,0,0]
[null,null,null,null,null,null,null,null,null,null,0,0,0,0,0,0]
[null,null,null,null,null,null,null,null,null,null,{"$f":"E514*wDraagvlak*CDraagvlak","v":0},{"$f":"F514*wImpact*CImpact","v":0},{"$f":"G514*wBereikbaarheid*CBereikbaar","v":0},{"$f":"H514*wVerweving*CVerweving","v":0},{"$f":"I514*wLeegstand*CLeegstand","v":0},{"$f":"J514*wUrgentie*CUrgentie","v":0}]
[null,null,null,null,null,null,null,null,null,null,0,0,0,0,0,0]
[null,null,null,null,null,null,null,null,null,null,0,0,0,0,0,0]
[null,null,null,null,null,null,null,null,null,null,0,0,0,0,0,0]
[null,null,null,null,null,null,null,null,null,null,0,0,0,0,0,0]
[null,null,null,null,null,null,null,null,null,null,0,0,0,0,0,0]
[null,null,null,null,null,null,null,null,null,null,0,0,0,0,0,0]
[null,null,null,null,null,null,null,null,null,null,0,0,0,0,0,0]
[null,null,null,null,null,null,null,null,null,null,0,0,0,0,0,0]
[null,null,null,null,null,null,null,null,null,null,0,0,0,0,0,0]
[null,null,null,null,null,null,null,null,null,null,0,0,0,0,0,0]
[null,null,null,null,null,null,null,null,null,null,0,0,0,0,0,0]
[null,null,null,null,null,null,null,null,null,null,0,0,0,0,0,0]
[null,null,null,null,null,null,null,null,null,null,0,0,0,0,0,0]
[null,null,null,null,null,null,null,null,null,null,0,0,0,0,0,0]
[null,null,null,null,null,null,null,null,null,null,0,0,0,0,0,0]
[null,null,null,null,null,null,null,null,null,null,0,0,0,0,0,0]
[null,null,null,null,null,null,null,null,null,null,0,0,0,0,0,0]
[null,null,null,null,null,null,null,null,null,null,0,0,0,0,0,0]
[null,null,null,null,null,null,null,null,null,null,0,0,0,0,0,0]
[null,null,null,null,null,null,null,null,null,null,0,0,0,0,0,0]
[null,null,null,null,null,null,null,null,null,null,0,0,0,0,0,0]
[null,null,null,null,null,null,null,null,null,null,0,0,0,0,0,0]
[null,null,null,null,null,null,null,null,null,null,0,0,0,0,0,0]
[null,null,null,null,null,null,null,null,null,null,0,0,0,0,0,0]
[null,null,null,null,null,null,null,null,null,null,0,0,0,0,0,0]
[null,null,null,null,null,null,null,null,null,null,0,0,0,0,0,0]
[null,null,null,null,null,null,null,null,null,null,0,0,0,0,0,0]
[null,null,null,null,null,null,null,null,null,null,0,0,0,0,0,0]
[null,null,null,null,null,null,null,null,null,null,0,0,0,0,0,0]
[null,null,null,null,null,null,null,null,null,null,0,0,0,0,0,0]
[null,null,null,null,null,null,null,null,null,null,0,0,0,0,0,0]
[null,null,null,null,null,null,null,null,null,null,0,0,0,0,0,0]
[null,null,null,null,null,null,null,null,null,null,0,0,0,0,0,0]
[null,null,null,null,null,null,null,null,null,null,0,0,0,0,0,0]
[null,null,null,null,null,null,null,null,null,null,0,0,0,0,0,0]
[null,null,null,null,null,null,null,null,null,null,0,0,0,0,0,0]
[null,null,null,null,null,null,null,null,null,null,0,0,0,0,0,0]
[null,null,null,null,null,null,null,null,null,null,0,0,0,0,0,0]
[null,null,null,null,null,null,null,null,null,null,0,0,0,0,0,0]
[null,null,null,null,null,null,null,null,null,null,0,0,0,0,0,0]
[null,null,null,null,null,null,null,null,null,null,0,0,0,0,0,0]
[null,null,null,null,null,null,null,null,null,null,0,0,0,0,0,0]
[null,null,null,null,null,null,null,null,null,null,0,0,0,0,0,0]
[null,null,null,null,null,null,null,null,null,null,0,0,0,0,0,0]
[null,null,null,null,null,null,null,null,null,null,0,0,0,0,0,0]
[null,null,null,null,null,null,null,null,null,null,0,0,0,0,0,0]
[null,null,null,null,null,null,null,null,null,null,0,0,0,0,0,0]
[null,null,null,null,null,null,null,null,null,null,0,0,0,0,0,0]
[null,null,null,null,null,null,null,null,null,null,0,0,0,0,0,0]
[null,null,null,null,null,null,null,null,null,null,0,0,0,0,0,0]
[null,null,null,null,null,null,null,null,null,null,0,0,0,0,0,0]
[null,null,null,null,null,null,null,null,null,null,0,0,0,0,0,0]
[null,null,null,null,null,null,null,null,null,null,0,0,0,0,0,0]
[null,null,null,null,null,null,null,null,null,null,0,0,0,0,0,0]
[null,null,null,null,null,null,null,null,null,null,0,0,0,0,0,0]
[null,null,null,null,null,null,null,null,null,null,0,0,0,0,0,0]
[null,null,null,null,null,null,null,null,null,null,0,0,0,0,0,0]
[null,null,null,null,null,null,null,null,null,null,0,0,0,0,0,0]
[null,null,null,null,null,null,null,null,null,null,0,0,0,0,0,0]
[null,null,null,null,null,null,null,null,null,null,0,0,0,0,0,0]
[null,null,null,null,null,null,null,null,null,null,0,0,0,0,0,0]
[null,null,null,null,null,null,null,null,null,null,0,0,0,0,0,0]
[null,null,null,null,null,null,null,null,null,null,0,0,0,0,0,0]
[null,null,null,null,null,null,null,null,null,null,{"$f":"E578*wDraagvlak*CDraagvlak","v":0},{"$f":"F578*wImpact*CImpact","v":0},{"$f":"G578*wBereikbaarheid*CBereikbaar","v":0},{"$f":"H578*wVerweving*CVerweving","v":0},{"$f":"I578*wLeegstand*CLeegstand","v":0},{"$f":"J578*wUrgentie*CUrgentie","v":0}]
[null,null,null,null,null,null,null,null,null,null,0,0,0,0,0,0]
[null,null,null,null,null,null,null,null,null,null,0,0,0,0,0,0]
[null,null,null,null,null,null,null,null,null,null,0,0,0,0,0,0]
[null,null,null,null,null,null,null,null,null,null,0,0,0,0,0,0]
[null,null,null,null,null,null,null,null,null,null,0,0,0,0,0,0]
[null,null,null,null,null,null,null,null,null,null,0,0,0,0,0,0]
[null,null,null,null,null,null,null,null,null,null,0,0,0,0,0,0]
[null,null,null,null,null,null,null,null,null,null,0,0,0,0,0,0]
[null,null,null,null,null,null,null,null,null,null,0,0,0,0,0,0]
[null,null,null,null,null,null,null,null,null,null,0,0,0,0,0,0]
[null,null,null,null,null,null,null,null,null,null,0,0,0,0,0,0]
[null,null,null,null,null,null,null,null,null,null,0,0,0,0,0,0]
[null,null,null,null,null,null,null,null,null,null,0,0,0,0,0,0]
[null,null,null,null,null,null,null,null,null,null,0,0,0,0,0,0]
[null,null,null,null,null,null,null,null,null,null,0,0,0,0,0,0]
[null,null,null,null,null,null,null,null,null,null,0,0,0,0,0,0]
[null,null,null,null,null,null,null,null,null,null,0,0,0,0,0,0]
[null,null,null,null,null,null,null,null,null,null,0,0,0,0,0,0]
[null,null,null,null,null,null,null,null,null,null,0,0,0,0,0,0]
[null,null,null,null,null,null,null,null,null,null,0,0,0,0,0,0]
[null,null,null,null,null,null,null,null,null,null,0,0,0,0,0,0]
[null,null,null,null,null,null,null,null,null,null,0,0,0,0,0,0]
[null,null,null,null,null,null,null,null,null,null,0,0,0,0,0,0]
[null,null,null,null,null,null,null,null,null,null,0,0,0,0,0,0]
[null,null,null,null,null,null,null,null,null,null,0,0,0,0,0,0]
[null,null,null,null,null,null,null,null,null,null,0,0,0,0,0,0]
[null,null,null,null,null,null,null,null,null,null,0,0,0,0,0,0]
[null,null,null,null,null,null,null,null,null,null,0,0,0,0,0,0]
[null,null,null,null,null,null,null,null,null,null,0,0,0,0,0,0]
[null,null,null,null,null,null,null,null,null,null,0,0,0,0,0,0]
[null,null,null,null,null,null,null,null,null,null,0,0,0,0,0,0]
[null,null,null,null,null,null,null,null,null,null,0,0,0,0,0,0]
[null,null,null,null,null,null,null,null,null,null,0,0,0,0,0,0]
[null,null,null,null,null,null,null,null,null,null,0,0,0,0,0,0]
[null,null,null,null,null,null,null,null,null,null,0,0,0,0,0,0]
[null,null,null,null,null,null,null,null,null,null,0,0,0,0,0,0]
[null,null,null,null,null,null,null,null,null,null,0,0,0,0,0,0]
[null,null,null,null,null,null,null,null,null,null,0,0,0,0,0,0]
[null,null,null,null,null,null,null,null,null,null,0,0,0,0,0,0]
[null,null,null,null,null,null,null,null,null,null,0,0,0,0,0,0]
[null,null,null,null,null,null,null,null,null,null,0,0,0,0,0,0]
[null,null,null,null,null,null,null,null,null,null,0,0,0,0,0,0]
[null,null,null,null,null,null,null,null,null,null,0,0,0,0,0,0]
[null,null,null,null,null,null,null,null,null,null,0,0,0,0,0,0]
[null,null,null,null,null,null,null,null,null,null,0,0,0,0,0,0]
[null,null,null,null,null,null,null,null,null,null,0,0,0,0,0,0]
[null,null,null,null,null,null,null,null,null,null,0,0,0,0,0,0]
[null,null,null,null,null,null,null,null,null,null,0,0,0,0,0,0]
[null,null,null,null,null,null,null,null,null,null,0,0,0,0,0,0]
[null,null,null,null,null,null,null,null,null,null,0,0,0,0,0,0]
[null,null,null,null,null,null,null,null,null,null,0,0,0,0,0,0]
[null,null,null,null,null,null,null,null,null,null,0,0,0,0,0,0]
[null,null,null,null,null,null,null,null,null,null,0,0,0,0,0,0]
[null,null,null,null,null,null,null,null,null,null,0,0,0,0,0,0]
[null,null,null,null,null,null,null,null,null,null,0,0,0,0,0,0]
[null,null,null,null,null,null,null,null,null,null,0,0,0,0,0,0]
[null,null,null,null,null,null,null,null,null,null,0,0,0,0,0,0]
[null,null,null,null,null,null,null,null,null,null,0,0,0,0,0,0]
[null,null,null,null,null,null,null,null,null,null,0,0,0,0,0,0]
[null,null,null,null,null,null,null,null,null,null,0,0,0,0,0,0]
[null,null,null,null,null,null,null,null,null,null,0,0,0,0,0,0]
[null,null,null,null,null,null,null,null,null,null,0,0,0,0,0,0]
[null,null,null,null,null,null,null,null,null,null,0,0,0,0,0,0]
[null,null,null,null,null,null,null,null,null,null,{"$f":"E642*wDraagvlak*CDraagvlak","v":0},{"$f":"F642*wImpact*CImpact","v":0},{"$f":"G642*wBereikbaarheid*CBereikbaar","v":0},{"$f":"H642*wVerweving*CVerweving","v":0},{"$f":"I642*wLeegstand*CLeegstand","v":0},{"$f":"J642*wUrgentie*CUrgentie","v":0}]
[null,null,null,null,null,null,null,null,null,null,0,0,0,0,0,0]
[null,null,null,null,null,null,null,null,null,null,0,0,0,0,0,0]
[null,null,null,null,null,null,null,null,null,null,0,0,0,0,0,0]
[null,null,null,null,null,null,null,null,null,null,0,0,0,0,0,0]
[null,null,null,null,null,null,null,null,null,null,0,0,0,0,0,0]
[null,null,null,null,null,null,null,null,null,null,0,0,0,0,0,0]
[null,null,null,null,null,null,null,null,null,null,0,0,0,0,0,0]
[null,null,null,null,null,null,null,null,null,null,0,0,0,0,0,0]
[null,null,null,null,null,null,null,null,null,null,0,0,0,0,0,0]
[null,null,null,null,null,null,null,null,null,null,0,0,0,0,0,0]
[null,null,null,null,null,null,null,null,null,null,0,0,0,0,0,0]
[null,null,null,null,null,null,null,null,null,null,0,0,0,0,0,0]
[null,null,null,null,null,null,null,null,null,null,0,0,0,0,0,0]
[null,null,null,null,null,null,null,null,null,null,0,0,0,0,0,0]
[null,null,null,null,null,null,null,null,null,null,0,0,0,0,0,0]
[null,null,null,null,null,null,null,null,null,null,0,0,0,0,0,0]
[null,null,null,null,null,null,null,null,null,null,0,0,0,0,0,0]
[null,null,null,null,null,null,null,null,null,null,0,0,0,0,0,0]
[null,null,null,null,null,null,null,null,null,null,0,0,0,0,0,0]
[null,null,null,null,null,null,null,null,null,null,0,0,0,0,0,0]
[null,null,null,null,null,null,null,null,null,null,0,0,0,0,0,0]
[null,null,null,null,null,null,null,null,null,null,0,0,0,0,0,0]
[null,null,null,null,null,null,null,null,null,null,0,0,0,0,0,0]
[null,null,null,null,null,null,null,null,null,null,0,0,0,0,0,0]
[null,null,null,null,null,null,null,null,null,null,0,0,0,0,0,0]
[null,null,null,null,null,null,null,null,null,null,0,0,0,0,0,0]
[null,null,null,null,null,null,null,null,null,null,0,0,0,0,0,0]
[null,null,null,null,null,null,null,null,null,null,0,0,0,0,0,0]
[null,null,null,null,null,null,null,null,null,null,0,0,0,0,0,0]
[null,null,null,null,null,null,null,null,null,null,0,0,0,0,0,0]
[null,null,null,null,null,null,null,null,null,null,0,0,0,0,0,0]
[null,null,null,null,null,null,null,null,null,null,0,0,0,0,0,0]
[null,null,null,null,null,null,null,null,null,null,0,0,0,0,0,0]
[null,null,null,null,null,null,null,null,null,null,0,0,0,0,0,0]
[null,null,null,null,null,null,null,null,null,null,0,0,0,0,0,0]
[null,null,null,null,null,null,null,null,null,null,0,0,0,0,0,0]
[null,null,null,null,null,null,null,null,null,null,0,0,0,0,0,0]
[null,null,null,null,null,null,null,null,null,null,0,0,0,0,0,0]
[null,null,null,null,null,null,null,null,null,null,0,0,0,0,0,0]
[null,null,null,null,null,null,null,null,null,null,0,0,0,0,0,0]
[null,null,null,null,null,null,null,null,null,null,0,0,0,0,0,0]
[null,null,null,null,null,null,null,null,null,null,0,0,0,0,0,0]
[null,null,null,null,null,null,null,null,null,null,0,0,0,0,0,0]
[null,null,null,null,null,null,null,null,null,null,0,0,0,0,0,0]
[null,null,null,null,null,null,null,null,null,null,0,0,0,0,0,0]
[null,null,null,null,null,null,null,null,null,null,0,0,0,0,0,0]
[null,null,null,null,null,null,null,null,null,null,0,0,0,0,0,0]
[null,null,null,null,null,null,null,null,null,null,0,0,0,0,0,0]
[null,null,null,null,null,null,null,null,null,null,0,0,0,0,0,0]
[null,null,null,null,null,null,null,null,null,null,0,0,0,0,0,0]
[null,null,null,null,null,null,null,null,null,null,0,0,0,0,0,0]
[null,null,null,null,null,null,null,null,null,null,0,0,0,0,0,0]
[null,null,null,null,null,null,null,null,null,null,0,0,0,0,0,0]
[null,null,null,null,null,null,null,null,null,null,0,0,0,0,0,0]
[null,null,null,null,null,null,null,null,null,null,0,0,0,0,0,0]
[null,null,null,null,null,null,null,null,null,null,0,0,0,0,0,0]
[null,null,null,null,null,null,null,null,null,null,0,0,0,0,0,0]
[null,null,null,null,null,null,null,null,null,null,0,0,0,0,0,0]
[null,null,null,null,null,null,null,null,null,null,0,0,0,0,0,0]
[null,null,null,null,null,null,null,null,null,null,0,0,0,0,0,0]
[null,null,null,null,null,null,null,null,null,null,0,0,0,0,0,0]
[null,null,null,null,null,null,null,null,null,null,0,0,0,0,0,0]
[null,null,null,null,null,null,null,null,null,null,0,0,0,0,0,0]
[null,null,null,null,null,null,null,null,null,null,{"$f":"E706*wDraagvlak*CDraagvlak","v":0},{"$f":"F706*wImpact*CImpact","v":0},{"$f":"G706*wBereikbaarheid*CBereikbaar","v":0},{"$f":"H706*wVerweving*CVerweving","v":0},{"$f":"I706*wLeegstand*CLeegstand","v":0},{"$f":"J706*wUrgentie*CUrgentie","v":0}]
[null,null,null,null,null,null,null,null,null,null,0,0,0,0,0,0]
[null,null,null,null,null,null,null,null,null,null,0,0,0,0,0,0]
[null,null,null,null,null,null,null,null,null,null,0,0,0,0,0,0]
[null,null,null,null,null,null,null,null,null,null,0,0,0,0,0,0]
[null,null,null,null,null,null,null,null,null,null,0,0,0,0,0,0]
[null,null,null,null,null,null,null,null,null,null,0,0,0,0,0,0]
[null,null,null,null,null,null,null,null,null,null,0,0,0,0,0,0]
[null,null,null,null,null,null,null,null,null,null,0,0,0,0,0,0]
[null,null,null,null,null,null,null,null,null,null,0,0,0,0,0,0]
[null,null,null,null,null,null,null,null,null,null,0,0,0,0,0,0]
[null,null,null,null,null,null,null,null,null,null,0,0,0,0,0,0]
[null,null,null,null,null,null,null,null,null,null,0,0,0,0,0,0]
[null,null,null,null,null,null,null,null,null,null,0,0,0,0,0,0]
[null,null,null,null,null,null,null,null,null,null,0,0,0,0,0,0]
[null,null,null,null,null,null,null,null,null,null,0,0,0,0,0,0]
[null,null,null,null,null,null,null,null,null,null,0,0,0,0,0,0]
[null,null,null,null,null,null,null,null,null,null,0,0,0,0,0,0]
[null,null,null,null,null,null,null,null,null,null,0,0,0,0,0,0]
[null,null,null,null,null,null,null,null,null,null,0,0,0,0,0,0]
[null,null,null,null,null,null,null,null,null,null,0,0,0,0,0,0]
[null,null,null,null,null,null,null,null,null,null,0,0,0,0,0,0]
[null,null,null,null,null,null,null,null,null,null,0,0,0,0,0,0]
[null,null,null,null,null,null,null,null,null,null,0,0,0,0,0,0]
[null,null,null,null,null,null,null,null,null,null,0,0,0,0,0,0]
[null,null,null,null,null,null,null,null,null,null,0,0,0,0,0,0]
[null,null,null,null,null,null,null,null,null,null,0,0,0,0,0,0]
[null,null,null,null,null,null,null,null,null,null,0,0,0,0,0,0]
[null,null,null,null,null,null,null,null,null,null,0,0,0,0,0,0]
[null,null,null,null,null,null,null,null,null,null,0,0,0,0,0,0]
[null,null,null,null,null,null,null,null,null,null,0,0,0,0,0,0]
[null,null,null,null,null,null,null,null,null,null,0,0,0,0,0,0]
[null,null,null,null,null,null,null,null,null,null,0,0,0,0,0,0]
[null,null,null,null,null,null,null,null,null,null,0,0,0,0,0,0]
[null,null,null,null,null,null,null,null,null,null,0,0,0,0,0,0]
[null,null,null,null,null,null,null,null,null,null,0,0,0,0,0,0]
[null,null,null,null,null,null,null,null,null,null,0,0,0,0,0,0]
[null,null,null,null,null,null,null,null,null,null,0,0,0,0,0,0]
[null,null,null,null,null,null,null,null,null,null,0,0,0,0,0,0]
[null,null,null,null,null,null,null,null,null,null,0,0,0,0,0,0]
[null,null,null,null,null,null,null,null,null,null,0,0,0,0,0,0]
[null,null,null,null,null,null,null,null,null,null,0,0,0,0,0,0]
[null,null,null,null,null,null,null,null,null,null,0,0,0,0,0,0]
[null,null,null,null,null,null,null,null,null,null,0,0,0,0,0,0]
[null,null,null,null,null,null,null,null,null,null,0,0,0,0,0,0]
[null,null,null,null,null,null,null,null,null,null,0,0,0,0,0,0]
[null,null,null,null,null,null,null,null,null,null,0,0,0,0,0,0]
[null,null,null,null,null,null,null,null,null,null,0,0,0,0,0,0]
[null,null,null,null,null,null,null,null,null,null,0,0,0,0,0,0]
[null,null,null,null,null,null,null,null,null,null,0,0,0,0,0,0]
[null,null,null,null,null,null,null,null,null,null,0,0,0,0,0,0]
[null,null,null,null,null,null,null,null,null,null,0,0,0,0,0,0]
[null,null,null,null,null,null,null,null,null,null,0,0,0,0,0,0]
[null,null,null,null,null,null,null,null,null,null,0,0,0,0,0,0]
[null,null,null,null,null,null,null,null,null,null,0,0,0,0,0,0]
[null,null,null,null,null,null,null,null,null,null,0,0,0,0,0,0]
[null,null,null,null,null,null,null,null,null,null,0,0,0,0,0,0]
[null,null,null,null,null,null,null,null,null,null,0,0,0,0,0,0]
[null,null,null,null,null,null,null,null,null,null,0,0,0,0,0,0]
[null,null,null,null,null,null,null,null,null,null,0,0,0,0,0,0]
[null,null,null,null,null,null,null,null,null,null,0,0,0,0,0,0]
[null,null,null,null,null,null,null,null,null,null,0,0,0,0,0,0]
[null,null,null,null,null,null,null,null,null,null,0,0,0,0,0,0]
[null,null,null,null,null,null,null,null,null,null,0,0,0,0,0,0]
[null,null,null,null,null,null,null,null,null,null,{"$f":"E770*wDraagvlak*CDraagvlak","v":0},{"$f":"F770*wImpact*CImpact","v":0},{"$f":"G770*wBereikbaarheid*CBereikbaar","v":0},{"$f":"H770*wVerweving*CVerweving","v":0},{"$f":"I770*wLeegstand*CLeegstand","v":0},{"$f":"J770*wUrgentie*CUrgentie","v":0}]
[null,null,null,null,null,null,null,null,null,null,0,0,0,0,0,0]
[null,null,null,null,null,null,null,null,null,null,0,0,0,0,0,0]
[null,null,null,null,null,null,null,null,null,null,0,0,0,0,0,0]
[null,null,null,null,null,null,null,null,null,null,0,0,0,0,0,0]
[null,null,null,null,null,null,null,null,null,null,0,0,0,0,0,0]
[null,null,null,null,null,null,null,null,null,null,0,0,0,0,0,0]
[null,null,null,null,null,null,null,null,null,null,0,0,0,0,0,0]
[null,null,null,null,null,null,null,null,null,null,0,0,0,0,0,0]
[null,null,null,null,null,null,null,null,null,null,0,0,0,0,0,0]
[null,null,null,null,null,null,null,null,null,null,0,0,0,0,0,0]
[null,null,null,null,null,null,null,null,null,null,0,0,0,0,0,0]
[null,null,null,null,null,null,null,null,null,null,0,0,0,0,0,0]
[null,null,null,null,null,null,null,null,null,null,0,0,0,0,0,0]
[null,null,null,null,null,null,null,null,null,null,0,0,0,0,0,0]
[null,null,null,null,null,null,null,null,null,null,0,0,0,0,0,0]
[null,null,null,null,null,null,null,null,null,null,0,0,0,0,0,0]
[null,null,null,null,null,null,null,null,null,null,0,0,0,0,0,0]
[null,null,null,null,null,null,null,null,null,null,0,0,0,0,0,0]
[null,null,null,null,null,null,null,null,null,null,0,0,0,0,0,0]
[null,null,null,null,null,null,null,null,null,null,0,0,0,0,0,0]
[null,null,null,null,null,null,null,null,null,null,0,0,0,0,0,0]
[null,null,null,null,null,null,null,null,null,null,0,0,0,0,0,0]
[null,null,null,null,null,null,null,null,null,null,0,0,0,0,0,0]
[null,null,null,null,null,null,null,null,null,null,0,0,0,0,0,0]
[null,null,null,null,null,null,null,null,null,null,0,0,0,0,0,0]
[null,null,null,null,null,null,null,null,null,null,0,0,0,0,0,0]
[null,null,null,null,null,null,null,null,null,null,0,0,0,0,0,0]
[null,null,null,null,null,null,null,null,null,null,0,0,0,0,0,0]
[null,null,null,null,null,null,null,null,null,null,0,0,0,0,0,0]
[null,null,null,null,null,null,null,null,null,null,0,0,0,0,0,0]
[null,null,null,null,null,null,null,null,null,null,0,0,0,0,0,0]
[null,null,null,null,null,null,null,null,null,null,0,0,0,0,0,0]
[null,null,null,null,null,null,null,null,null,null,0,0,0,0,0,0]
[null,null,null,null,null,null,null,null,null,null,0,0,0,0,0,0]
[null,null,null,null,null,null,null,null,null,null,0,0,0,0,0,0]
[null,null,null,null,null,null,null,null,null,null,0,0,0,0,0,0]
[null,null,null,null,null,null,null,null,null,null,0,0,0,0,0,0]
[null,null,null,null,null,null,null,null,null,null,0,0,0,0,0,0]
[null,null,null,null,null,null,null,null,null,null,0,0,0,0,0,0]
[null,null,null,null,null,null,null,null,null,null,0,0,0,0,0,0]
[null,null,null,null,null,null,null,null,null,null,0,0,0,0,0,0]
[null,null,null,null,null,null,null,null,null,null,0,0,0,0,0,0]
[null,null,null,null,null,null,null,null,null,null,0,0,0,0,0,0]
[null,null,null,null,null,null,null,null,null,null,0,0,0,0,0,0]
[null,null,null,null,null,null,null,null,null,null,0,0,0,0,0,0]
[null,null,null,null,null,null,null,null,null,null,0,0,0,0,0,0]
[null,null,null,null,null,null,null,null,null,null,0,0,0,0,0,0]
[null,null,null,null,null,null,null,null,null,null,0,0,0,0,0,0]
[null,null,null,null,null,null,null,null,null,null,0,0,0,0,0,0]
[null,null,null,null,null,null,null,null,null,null,0,0,0,0,0,0]
[null,null,null,null,null,null,null,null,null,null,0,0,0,0,0,0]
[null,null,null,null,null,null,null,null,null,null,0,0,0,0,0,0]
[null,null,null,null,null,null,null,null,null,null,0,0,0,0,0,0]
[null,null,null,null,null,null,null,null,null,null,0,0,0,0,0,0]
[null,null,null,null,null,null,null,null,null,null,0,0,0,0,0,0]
[null,null,null,null,null,null,null,null,null,null,0,0,0,0,0,0]
[null,null,null,null,null,null,null,null,null,null,0,0,0,0,0,0]
[null,null,null,null,null,null,null,null,null,null,0,0,0,0,0,0]
[null,null,null,null,null,null,null,null,null,null,0,0,0,0,0,0]
[null,null,null,null,null,null,null,null,null,null,0,0,0,0,0,0]
[null,null,null,null,null,null,null,null,null,null,0,0,0,0,0,0]
[null,null,null,null,null,null,null,null,null,null,0,0,0,0,0,0]
[null,null,null,null,null,null,null,null,null,null,0,0,0,0,0,0]
[null,null,null,null,null,null,null,null,null,null,{"$f":"E834*wDraagvlak*CDraagvlak","v":0},{"$f":"F834*wImpact*CImpact","v":0},{"$f":"G834*wBereikbaarheid*CBereikbaar","v":0},{"$f":"H834*wVerweving*CVerweving","v":0},{"$f":"I834*wLeegstand*CLeegstand","v":0},{"$f":"J834*wUrgentie*CUrgentie","v":0}]
[null,null,null,null,null,null,null,null,null,null,0,0,0,0,0,0]
[null,null,null,null,null,null,null,null,null,null,0,0,0,0,0,0]
[null,null,null,null,null,null,null,null,null,null,0,0,0,0,0,0]
[null,null,null,null,null,null,null,null,null,null,0,0,0,0,0,0]
[null,null,null,null,null,null,null,null,null,null,0,0,0,0,0,0]
[null,null,null,null,null,null,null,null,null,null,0,0,0,0,0,0]
[null,null,null,null,null,null,null,null,null,null,0,0,0,0,0,0]
[null,null,null,null,null,null,null,null,null,null,0,0,0,0,0,0]
[null,null,null,null,null,null,null,null,null,null,0,0,0,0,0,0]
[null,null,null,null,null,null,null,null,null,null,0,0,0,0,0,0]
[null,null,null,null,null,null,null,null,null,null,0,0,0,0,0,0]
[null,null,null,null,null,null,null,null,null,null,0,0,0,0,0,0]
[null,null,null,null,null,null,null,null,null,null,0,0,0,0,0,0]
[null,null,null,null,null,null,null,null,null,null,0,0,0,0,0,0]
[null,null,null,null,null,null,null,null,null,null,0,0,0,0,0,0]
[null,null,null,null,null,null,null,null,null,null,0,0,0,0,0,0]
[null,null,null,null,null,null,null,null,null,null,0,0,0,0,0,0]
[null,null,null,null,null,null,null,null,null,null,0,0,0,0,0,0]
[null,null,null,null,null,null,null,null,null,null,0,0,0,0,0,0]
[null,null,null,null,null,null,null,null,null,null,0,0,0,0,0,0]
[null,null,null,null,null,null,null,null,null,null,0,0,0,0,0,0]
[null,null,null,null,null,null,null,null,null,null,0,0,0,0,0,0]
[null,null,null,null,null,null,null,null,null,null,0,0,0,0,0,0]
[null,null,null,null,null,null,null,null,null,null,0,0,0,0,0,0]
[null,null,null,null,null,null,null,null,null,null,0,0,0,0,0,0]
[null,null,null,null,null,null,null,null,null,null,0,0,0,0,0,0]
[null,null,null,null,null,null,null,null,null,null,0,0,0,0,0,0]
[null,null,null,null,null,null,null,null,null,null,0,0,0,0,0,0]
[null,null,null,null,null,null,null,null,null,null,0,0,0,0,0,0]
[null,null,null,null,null,null,null,null,null,null,0,0,0,0,0,0]
[null,null,null,null,null,null,null,null,null,null,0,0,0,0,0,0]
[null,null,null,null,null,null,null,null,null,null,0,0,0,0,0,0]
[null,null,null,null,null,null,null,null,null,null,0,0,0,0,0,0]
[null,null,null,null,null,null,null,null,null,null,0,0,0,0,0,0]
[null,null,null,null,null,null,null,null,null,null,0,0,0,0,0,0]
[null,null,null,null,null,null,null,null,null,null,0,0,0,0,0,0]
[null,null,null,null,null,null,null,null,null,null,0,0,0,0,0,0]
[null,null,null,null,null,null,null,null,null,null,0,0,0,0,0,0]
[null,null,null,null,null,null,null,null,null,null,0,0,0,0,0,0]
[null,null,null,null,null,null,null,null,null,null,0,0,0,0,0,0]
[null,null,null,null,null,null,null,null,null,null,0,0,0,0,0,0]
[null,null,null,null,null,null,null,null,null,null,0,0,0,0,0,0]
[null,null,null,null,null,null,null,null,null,null,0,0,0,0,0,0]
[null,null,null,null,null,null,null,null,null,null,0,0,0,0,0,0]
[null,null,null,null,null,null,null,null,null,null,0,0,0,0,0,0]
[null,null,null,null,null,null,null,null,null,null,0,0,0,0,0,0]
[null,null,null,null,null,null,null,null,null,null,0,0,0,0,0,0]
[null,null,null,null,null,null,null,null,null,null,0,0,0,0,0,0]
[null,null,null,null,null,null,null,null,null,null,0,0,0,0,0,0]
[null,null,null,null,null,null,null,null,null,null,0,0,0,0,0,0]
[null,null,null,null,null,null,null,null,null,null,0,0,0,0,0,0]
[null,null,null,null,null,null,null,null,null,null,0,0,0,0,0,0]
[null,null,null,null,null,null,null,null,null,null,0,0,0,0,0,0]
[null,null,null,null,null,null,null,null,null,null,0,0,0,0,0,0]
[null,null,null,null,null,null,null,null,null,null,0,0,0,0,0,0]
[null,null,null,null,null,null,null,null,null,null,0,0,0,0,0,0]
[null,null,null,null,null,null,null,null,null,null,0,0,0,0,0,0]
[null,null,null,null,null,null,null,null,null,null,0,0,0,0,0,0]
[null,null,null,null,null,null,null,null,null,null,0,0,0,0,0,0]
[null,null,null,null,null,null,null,null,null,null,0,0,0,0,0,0]
[null,null,null,null,null,null,null,null,null,null,0,0,0,0,0,0]
[null,null,null,null,null,null,null,null,null,null,0,0,0,0,0,0]
[null,null,null,null,null,null,null,null,null,null,0,0,0,0,0,0]
[null,null,null,null,null,null,null,null,null,null,{"$f":"E898*wDraagvlak*CDraagvlak","v":0},{"$f":"F898*wImpact*CImpact","v":0},{"$f":"G898*wBereikbaarheid*CBereikbaar","v":0},{"$f":"H898*wVerweving*CVerweving","v":0},{"$f":"I898*wLeegstand*CLeegstand","v":0},{"$f":"J898*wUrgentie*CUrgentie","v":0}]
[null,null,null,null,null,null,null,null,null,null,0,0,0,0,0,0]
[null,null,null,null,null,null,null,null,null,null,0,0,0,0,0,0]
[null,null,null,null,null,null,null,null,null,null,0,0,0,0,0,0]
[null,null,null,null,null,null,null,null,null,null,0,0,0,0,0,0]
[null,null,null,null,null,null,null,null,null,null,0,0,0,0,0,0]
[null,null,null,null,null,null,null,null,null,null,0,0,0,0,0,0]
[null,null,null,null,null,null,null,null,null,null,0,0,0,0,0,0]
[null,null,null,null,null,null,null,null,null,null,0,0,0,0,0,0]
[null,null,null,null,null,null,null,null,null,null,0,0,0,0,0,0]
[null,null,null,null,null,null,null,null,null,null,0,0,0,0,0,0]
[null,null,null,null,null,null,null,null,null,null,0,0,0,0,0,0]
[null,null,null,null,null,null,null,null,null,null,0,0,0,0,0,0]
[null,null,null,null,null,null,null,null,null,null,0,0,0,0,0,0]
[null,null,null,null,null,null,null,null,null,null,0,0,0,0,0,0]
[null,null,null,null,null,null,null,null,null,null,0,0,0,0,0,0]
[null,null,null,null,null,null,null,null,null,null,0,0,0,0,0,0]
[null,null,null,null,null,null,null,null,null,null,0,0,0,0,0,0]
[null,null,null,null,null,null,null,null,null,null,0,0,0,0,0,0]
[null,null,null,null,null,null,null,null,null,null,0,0,0,0,0,0]
[null,null,null,null,null,null,null,null,null,null,0,0,0,0,0,0]
[null,null,null,null,null,null,null,null,null,null,0,0,0,0,0,0]
[null,null,null,null,null,null,null,null,null,null,0,0,0,0,0,0]
[null,null,null,null,null,null,null,null,null,null,0,0,0,0,0,0]
[null,null,null,null,null,null,null,null,null,null,0,0,0,0,0,0]
[null,null,null,null,null,null,null,null,null,null,0,0,0,0,0,0]
[null,null,null,null,null,null,null,null,null,null,0,0,0,0,0,0]
[null,null,null,null,null,null,null,null,null,null,0,0,0,0,0,0]
[null,null,null,null,null,null,null,null,null,null,0,0,0,0,0,0]
[null,null,null,null,null,null,null,null,null,null,0,0,0,0,0,0]
[null,null,null,null,null,null,null,null,null,null,0,0,0,0,0,0]
[null,null,null,null,null,null,null,null,null,null,0,0,0,0,0,0]
[null,null,null,null,null,null,null,null,null,null,0,0,0,0,0,0]
[null,null,null,null,null,null,null,null,null,null,0,0,0,0,0,0]
[null,null,null,null,null,null,null,null,null,null,0,0,0,0,0,0]
[null,null,null,null,null,null,null,null,null,null,0,0,0,0,0,0]
[null,null,null,null,null,null,null,null,null,null,0,0,0,0,0,0]
[null,null,null,null,null,null,null,null,null,null,0,0,0,0,0,0]
[null,null,null,null,null,null,null,null,null,null,0,0,0,0,0,0]
[null,null,null,null,null,null,null,null,null,null,0,0,0,0,0,0]
[null,null,null,null,null,null,null,null,null,null,0,0,0,0,0,0]
[null,null,null,null,null,null,null,null,null,null,0,0,0,0,0,0]
[null,null,null,null,null,null,null,null,null,null,0,0,0,0,0,0]
[null,null,null,null,null,null,null,null,null,null,0,0,0,0,0,0]
[null,null,null,null,null,null,null,null,null,null,0,0,0,0,0,0]
[null,null,null,null,null,null,null,null,null,null,0,0,0,0,0,0]
[null,null,null,null,null,null,null,null,null,null,0,0,0,0,0,0]
[null,null,null,null,null,null,null,null,null,null,0,0,0,0,0,0]
[null,null,null,null,null,null,null,null,null,null,0,0,0,0,0,0]
[null,null,null,null,null,null,null,null,null,null,0,0,0,0,0,0]
[null,null,null,null,null,null,null,null,null,null,0,0,0,0,0,0]
[null,null,null,null,null,null,null,null,null,null,0,0,0,0,0,0]
[null,null,null,null,null,null,null,null,null,null,0,0,0,0,0,0]
[null,null,null,null,null,null,null,null,null,null,0,0,0,0,0,0]
[null,null,null,null,null,null,null,null,null,null,0,0,0,0,0,0]
[null,null,null,null,null,null,null,null,null,null,0,0,0,0,0,0]
[null,null,null,null,null,null,null,null,null,null,0,0,0,0,0,0]
[null,null,null,null,null,null,null,null,null,null,0,0,0,0,0,0]
[null,null,null,null,null,null,null,null,null,null,0,0,0,0,0,0]
[null,null,null,null,null,null,null,null,null,null,0,0,0,0,0,0]
[null,null,null,null,null,null,null,null,null,null,0,0,0,0,0,0]
[null,null,null,null,null,null,null,null,null,null,0,0,0,0,0,0]
[null,null,null,null,null,null,null,null,null,null,0,0,0,0,0,0]
[null,null,null,null,null,null,null,null,null,null,0,0,0,0,0,0]
[null,null,null,null,null,null,null,null,null,null,{"$f":"E962*wDraagvlak*CDraagvlak","v":0},{"$f":"F962*wImpact*CImpact","v":0},{"$f":"G962*wBereikbaarheid*CBereikbaar","v":0},{"$f":"H962*wVerweving*CVerweving","v":0},{"$f":"I962*wLeegstand*CLeegstand","v":0},{"$f":"J962*wUrgentie*CUrgentie","v":0}]
[null,null,null,null,null,null,null,null,null,null,0,0,0,0,0,0]
[null,null,null,null,null,null,null,null,null,null,0,0,0,0,0,0]
[null,null,null,null,null,null,null,null,null,null,0,0,0,0,0,0]
[null,null,null,null,null,null,null,null,null,null,0,0,0,0,0,0]
[null,null,null,null,null,null,null,null,null,null,0,0,0,0,0,0]
[null,null,null,null,null,null,null,null,null,null,0,0,0,0,0,0]
[null,null,null,null,null,null,null,null,null,null,0,0,0,0,0,0]
[null,null,null,null,null,null,null,null,null,null,0,0,0,0,0,0]
[null,null,null,null,null,null,null,null,null,null,0,0,0,0,0,0]
[null,null,null,null,null,null,null,null,null,null,0,0,0,0,0,0]
[null,null,null,null,null,null,null,null,null,null,0,0,0,0,0,0]
[null,null,null,null,null,null,null,null,null,null,0,0,0,0,0,0]
[null,null,null,null,null,null,null,null,null,null,0,0,0,0,0,0]
[null,null,null,null,null,null,null,null,null,null,0,0,0,0,0,0]
[null,null,null,null,null,null,null,null,null,null,0,0,0,0,0,0]
[null,null,null,null,null,null,null,null,null,null,0,0,0,0,0,0]
[null,null,null,null,null,null,null,null,null,null,0,0,0,0,0,0]
[null,null,null,null,null,null,null,null,null,null,0,0,0,0,0,0]
[null,null,null,null,null,null,null,null,null,null,0,0,0,0,0,0]
[null,null,null,null,null,null,null,null,null,null,0,0,0,0,0,0]
[null,null,null,null,null,null,null,null,null,null,0,0,0,0,0,0]
[null,null,null,null,null,null,null,null,null,null,0,0,0,0,0,0]
[null,null,null,null,null,null,null,null,null,null,0,0,0,0,0,0]
[null,null,null,null,null,null,null,null,null,null,0,0,0,0,0,0]
[null,null,null,null,null,null,null,null,null,null,0,0,0,0,0,0]
[null,null,null,null,null,null,null,null,null,null,0,0,0,0,0,0]
[null,null,null,null,null,null,null,null,null,null,0,0,0,0,0,0]
[null,null,null,null,null,null,null,null,null,null,0,0,0,0,0,0]
[null,null,null,null,null,null,null,null,null,null,0,0,0,0,0,0]
[null,null,null,null,null,null,null,null,null,null,0,0,0,0,0,0]
[null,null,null,null,null,null,null,null,null,null,0,0,0,0,0,0]
[null,null,null,null,null,null,null,null,null,null,0,0,0,0,0,0]
[null,null,null,null,null,null,null,null,null,null,0,0,0,0,0,0]
[null,null,null,null,null,null,null,null,null,null,0,0,0,0,0,0]
[null,null,null,null,null,null,null,null,null,null,0,0,0,0,0,0]
[null,null,null,null,null,null,null,null,null,null,0,0,0,0,0,0]
[null,null,null,null,null,null,null,null,null,null,0,0,0,0,0,0]
[null,null,null,null,null,null,null,null,null,null,0,0,0,0,0,0]
[null,null,null,null,null,null,null,null,null,null,0,0,0,0,0,0]
[null,null,null,null,null,null,null,null,null,null,0,0,0,0,0,0]
[null,null,null,null,null,null,null,null,null,null,0,0,0,0,0,0]
[null,null,null,null,null,null,null,null,null,null,0,0,0,0,0,0]
[null,null,null,null,null,null,null,null,null,null,0,0,0,0,0,0]
[null,null,null,null,null,null,null,null,null,null,0,0,0,0,0,0]
[null,null,null,null,null,null,null,null,null,null,0,0,0,0,0,0]
[null,null,null,null,null,null,null,null,null,null,0,0,0,0,0,0]
[null,null,null,null,null,null,null,null,null,null,0,0,0,0,0,0]
[null,null,null,null,null,null,null,null,null,null,0,0,0,0,0,0]
[null,null,null,null,null,null,null,null,null,null,0,0,0,0,0,0]
[null,null,null,null,null,null,null,null,null,null,0,0,0,0,0,0]
[null,null,null,null,null,null,null,null,null,null,0,0,0,0,0,0]
[null,null,null,null,null,null,null,null,null,null,0,0,0,0,0,0]
[null,null,null,null,null,null,null,null,null,null,0,0,0,0,0,0]
[null,null,null,null,null,null,null,null,null,null,0,0,0,0,0,0]
[null,null,null,null,null,null,null,null,null,null,0,0,0,0,0,0]
[null,null,null,null,null,null,null,null,null,null,0,0,0,0,0,0]
[null,null,null,null,null,null,null,null,null,null,0,0,0,0,0,0]
[null,null,null,null,null,null,null,null,null,null,0,0,0,0,0,0]
[null,null,null,null,null,null,null,null,null,null,0,0,0,0,0,0]
[null,null,null,null,null,null,null,null,null,null,0,0,0,0,0,0]
[null,null,null,null,null,null,null,null,null,null,0,0,0,0,0,0]
[null,null,null,null,null,null,null,null,null,null,0,0,0,0,0,0]
[null,null,null,null,null,null,null,null,null,null,0,0,0,0,0,0]
[null,null,null,null,null,null,null,null,null,null,{"$f":"E1026*wDraagvlak*CDraagvlak","v":0},{"$f":"F1026*wImpact*CImpact","v":0},{"$f":"G1026*wBereikbaarheid*CBereikbaar","v":0},{"$f":"H1026*wVerweving*CVerweving","v":0},{"$f":"I1026*wLeegstand*CLeegstand","v":0},{"$f":"J1026*wUrgentie*CUrgentie","v":0}]
[null,null,null,null,null,null,null,null,null,null,0,0,0,0,0,0]
[null,null,null,null,null,null,null,null,null,null,0,0,0,0,0,0]
[null,null,null,null,null,null,null,null,null,null,0,0,0,0,0,0]
[null,null,null,null,null,null,null,null,null,null,0,0,0,0,0,0]
[null,null,null,null,null,null,null,null,null,null,0,0,0,0,0,0]
[null,null,null,null,null,null,null,null,null,null,0,0,0,0,0,0]
[null,null,null,null,null,null,null,null,null,null,0,0,0,0,0,0]
[null,null,null,null,null,null,null,null,null,null,0,0,0,0,0,0]
[null,null,null,null,null,null,null,null,null,null,0,0,0,0,0,0]
[null,null,null,null,null,null,null,null,null,null,0,0,0,0,0,0]
[null,null,null,null,null,null,null,null,null,null,0,0,0,0,0,0]
[null,null,null,null,null,null,null,null,null,null,0,0,0,0,0,0]
[null,null,null,null,null,null,null,null,null,null,0,0,0,0,0,0]
[null,null,null,null,null,null,null,null,null,null,0,0,0,0,0,0]
[null,null,null,null,null,null,null,null,null,null,0,0,0,0,0,0]
[null,null,null,null,null,null,null,null,null,null,0,0,0,0,0,0]
[null,null,null,null,null,null,null,null,null,null,0,0,0,0,0,0]
[null,null,null,null,null,null,null,null,null,null,0,0,0,0,0,0]
[null,null,null,null,null,null,null,null,null,null,0,0,0,0,0,0]
[null,null,null,null,null,null,null,null,null,null,0,0,0,0,0,0]
[null,null,null,null,null,null,null,null,null,null,0,0,0,0,0,0]
[null,null,null,null,null,null,null,null,null,null,0,0,0,0,0,0]
[null,null,null,null,null,null,null,null,null,null,0,0,0,0,0,0]
[null,null,null,null,null,null,null,null,null,null,0,0,0,0,0,0]
[null,null,null,null,null,null,null,null,null,null,0,0,0,0,0,0]
[null,null,null,null,null,null,null,null,null,null,0,0,0,0,0,0]
[null,null,null,null,null,null,null,null,null,null,0,0,0,0,0,0]
[null,null,null,null,null,null,null,null,null,null,0,0,0,0,0,0]
[null,null,null,null,null,null,null,null,null,null,0,0,0,0,0,0]
[null,null,null,null,null,null,null,null,null,null,0,0,0,0,0,0]
[null,null,null,null,null,null,null,null,null,null,0,0,0,0,0,0]
[null,null,null,null,null,null,null,null,null,null,0,0,0,0,0,0]
[null,null,null,null,null,null,null,null,null,null,0,0,0,0,0,0]
[null,null,null,null,null,null,null,null,null,null,0,0,0,0,0,0]
[null,null,null,null,null,null,null,null,null,null,0,0,0,0,0,0]
[null,null,null,null,null,null,null,null,null,null,0,0,0,0,0,0]
[null,null,null,null,null,null,null,null,null,null,0,0,0,0,0,0]
[null,null,null,null,null,null,null,null,null,null,0,0,0,0,0,0]
[null,null,null,null,null,null,null,null,null,null,0,0,0,0,0,0]
[null,null,null,null,null,null,null,null,null,null,0,0,0,0,0,0]
[null,null,null,null,null,null,null,null,null,null,0,0,0,0,0,0]
[null,null,null,null,null,null,null,null,null,null,0,0,0,0,0,0]
[null,null,null,null,null,null,null,null,null,null,0,0,0,0,0,0]
[null,null,null,null,null,null,null,null,null,null,0,0,0,0,0,0]
[null,null,null,null,null,null,null,null,null,null,0,0,0,0,0,0]
[null,null,null,null,null,null,null,null,null,null,0,0,0,0,0,0]
[null,null,null,null,null,null,null,null,null,null,0,0,0,0,0,0]
[null,null,null,null,null,null,null,null,null,null,0,0,0,0,0,0]
[null,null,null,null,null,null,null,null,null,null,0,0,0,0,0,0]
[null,null,null,null,null,null,null,null,null,null,0,0,0,0,0,0]
[null,null,null,null,null,null,null,null,null,null,0,0,0,0,0,0]
[null,null,null,null,null,null,null,null,null,null,0,0,0,0,{"$f":"I1078*wLeegstand*CLeegstand","v":0},0]
[null,null,null,null,null,null,null,null,null,null,0,0,0,0,0,0]
[null,null,null,null,null,null,null,null,null,null,0,0,0,0,0,0]
[null,null,null,null,null,null,null,null,null,null,0,0,0,0,0,0]
[null,null,null,null,null,null,null,null,null,null,0,0,0,0,0,0]
[null,null,null,null,null,null,null,null,null,null,0,0,0,0,0,0]
[null,null,null,null,null,null,null,null,null,null,0,0,0,0,0,0]
[null,null,null,null,null,null,null,null,null,null,0,0,0,0,0,0]
[null,null,null,null,null,null,null,null,null,null,0,0,0,0,0,0]
[null,null,null,null,null,null,null,null,null,null,0,0,0,0,0,0]
[null,null,null,null,null,null,null,null,null,null,0,0,0,0,0,0]
[null,null,null,null,null,null,null,null,null,null,0,0,0,0,0,0]
[null,null,null,null,null,null,null,null,null,null,{"$f":"E1090*wDraagvlak*CDraagvlak","v":0},{"$f":"F1090*wImpact*CImpact","v":0},{"$f":"G1090*wBereikbaarheid*CBereikbaar","v":0},{"$f":"H1090*wVerweving*CVerweving","v":0},0,{"$f":"J1090*wUrgentie*CUrgentie","v":0}]
[null,null,null,null,null,null,null,null,null,null,0,0,0,0,{"$f":"I1091*wLeegstand*CLeegstand","v":0},0]
[null,null,null,null,null,null,null,null,null,null,0,0,0,0,0,0]
[null,null,null,null,null,null,null,null,null,null,0,0,0,0,0,0]
[null,null,null,null,null,null,null,null,null,null,0,0,0,0,0,0]
[null,null,null,null,null,null,null,null,null,null,0,0,0,0,0,0]
[null,null,null,null,null,null,null,null,null,null,0,0,0,0,0,0]
[null,null,null,null,null,null,null,null,null,null,0,0,0,0,0,0]
[null,null,null,null,null,null,null,null,null,null,0,0,0,0,0,0]
[null,null,null,null,null,null,null,null,null,null,0,0,0,0,0,0]
[null,null,null,null,null,null,null,null,null,null,0,0,0,0,0,0]
[null,null,null,null,null,null,null,null,null,null,0,0,0,0,0,0]
[null,null,null,null,null,null,null,null,null,null,0,0,0,0,0,0]
[null,null,null,null,null,null,null,null,null,null,0,0,0,0,0,0]
[null,null,null,null,null,null,null,null,null,null,0,0,0,0,0,0]
[null,null,null,null,null,null,null,null,null,null,0,0,0,0,0,0]
[null,null,null,null,null,null,null,null,null,null,0,0,0,0,0,0]
[null,null,null,null,null,null,null,null,null,null,0,0,0,0,0,0]
[null,null,null,null,null,null,null,null,null,null,0,0,0,0,0,0]
[null,null,null,null,null,null,null,null,null,null,0,0,0,0,0,0]
[null,null,null,null,null,null,null,null,null,null,0,0,0,0,0,0]
[null,null,null,null,null,null,null,null,null,null,0,0,0,0,0,0]
[null,null,null,null,null,null,null,null,null,null,0,0,0,0,0,0]
[null,null,null,null,null,null,null,null,null,null,0,0,0,0,0,0]
[null,null,null,null,null,null,null,null,null,null,0,0,0,0,0,0]
[null,null,null,null,null,null,null,null,null,null,0,0,0,0,0,0]
[null,null,null,null,null,null,null,null,null,null,0,0,0,0,0,0]
[null,null,null,null,null,null,null,null,null,null,0,0,0,0,0,0]
[null,null,null,null,null,null,null,null,null,null,0,0,0,0,0,0]
[null,null,null,null,null,null,null,null,null,null,0,0,0,0,0,0]
[null,null,null,null,null,null,null,null,null,null,0,0,0,0,0,0]
[null,null,null,null,null,null,null,null,null,null,0,0,0,0,0,0]
[null,null,null,null,null,null,null,null,null,null,0,0,0,0,0,0]
[null,null,null,null,null,null,null,null,null,null,0,0,0,0,0,0]
[null,null,null,null,null,null,null,null,null,null,0,0,0,0,0,0]
[null,null,null,null,null,null,null,null,null,null,0,0,0,0,0,0]
[null,null,null,null,null,null,null,null,null,null,0,0,0,0,0,0]
[null,null,null,null,null,null,null,null,null,null,0,0,0,0,0,0]
[null,null,null,null,null,null,null,null,null,null,0,0,0,0,0,0]
[null,null,null,null,null,null,null,null,null,null,0,0,0,0,0,0]
[null,null,null,null,null,null,null,null,null,null,0,0,0,0,0,0]
[null,null,null,null,null,null,null,null,null,null,0,0,0,0,0,0]
[null,null,null,null,null,null,null,null,null,null,0,0,0,0,0,0]
[null,null,null,null,null,null,null,null,null,null,0,0,0,0,0,0]
[null,null,null,null,null,null,null,null,null,null,0,0,0,0,0,0]
[null,null,null,null,null,null,null,null,null,null,0,0,0,0,0,0]
[null,null,null,null,null,null,null,null,null,null,0,0,0,0,0,0]
[null,null,null,null,null,null,null,null,null,null,0,0,0,0,0,0]
[null,null,null,null,null,null,null,null,null,null,0,0,0,0,0,0]
[null,null,null,null,null,null,null,null,null,null,0,0,0,0,0,0]
[null,null,null,null,null,null,null,null,null,null,0,0,0,0,0,0]
[null,null,null,null,null,null,null,null,null,null,0,0,0,0,0,0]
[null,null,null,null,null,null,null,null,null,null,0,0,0,0,0,0]
[null,null,null,null,null,null,null,null,null,null,0,0,0,0,0,0]
[null,null,null,null,null,null,null,null,null,null,0,0,0,0,0,0]
[null,null,null,null,null,null,null,null,null,null,0,0,0,0,0,0]
[null,null,null,null,null,null,null,null,null,null,0,0,0,0,0,0]
[null,null,null,null,null,null,null,null,null,null,0,0,0,0,0,0]
[null,null,null,null,null,null,null,null,null,null,0,0,0,0,0,0]
[null,null,null,null,null,null,null,null,null,null,0,0,0,0,0,0]
[null,null,null,null,null,null,null,null,null,null,0,0,0,0,0,0]
[null,null,null,null,null,null,null,null,null,null,0,0,0,0,0,0]
[null,null,null,null,null,null,null,null,null,null,0,0,0,0,0,0]
[null,null,null,null,null,null,null,null,null,null,0,0,0,0,0,0]
[null,null,null,null,null,null,null,null,null,null,{"$f":"E1154*wDraagvlak*CDraagvlak","v":0},{"$f":"F1154*wImpact*CImpact","v":0},{"$f":"G1154*wBereikbaarheid*CBereikbaar","v":0},{"$f":"H1154*wVerweving*CVerweving","v":0},0,{"$f":"J1154*wUrgentie*CUrgentie","v":0}]
[null,null,null,null,null,null,null,null,null,null,0,0,0,0,{"$f":"I1155*wLeegstand*CLeegstand","v":0},0]
[null,null,null,null,null,null,null,null,null,null,0,0,0,0,0,0]
[null,null,null,null,null,null,null,null,null,null,0,0,0,0,0,0]
[null,null,null,null,null,null,null,null,null,null,0,0,0,0,0,0]
[null,null,null,null,null,null,null,null,null,null,0,0,0,0,0,0]
[null,null,null,null,null,null,null,null,null,null,0,0,0,0,0,0]
[null,null,null,null,null,null,null,null,null,null,0,0,0,0,0,0]
[null,null,null,null,null,null,null,null,null,null,0,0,0,0,0,0]
[null,null,null,null,null,null,null,null,null,null,0,0,0,0,0,0]
[null,null,null,null,null,null,null,null,null,null,0,0,0,0,0,0]
[null,null,null,null,null,null,null,null,null,null,0,0,0,0,0,0]
[null,null,null,null,null,null,null,null,null,null,0,0,0,0,0,0]
[null,null,null,null,null,null,null,null,null,null,0,0,0,0,0,0]
[null,null,null,null,null,null,null,null,null,null,0,0,0,0,0,0]
[null,null,null,null,null,null,null,null,null,null,0,0,0,0,0,0]
[null,null,null,null,null,null,null,null,null,null,0,0,0,0,0,0]
[null,null,null,null,null,null,null,null,null,null,0,0,0,0,0,0]
[null,null,null,null,null,null,null,null,null,null,0,0,0,0,0,0]
[null,null,null,null,null,null,null,null,null,null,0,0,0,0,0,0]
[null,null,null,null,null,null,null,null,null,null,0,0,0,0,0,0]
[null,null,null,null,null,null,null,null,null,null,0,0,0,0,0,0]
[null,null,null,null,null,null,null,null,null,null,0,0,0,0,0,0]
[null,null,null,null,null,null,null,null,null,null,0,0,0,0,0,0]
[null,null,null,null,null,null,null,null,null,null,0,0,0,0,0,0]
[null,null,null,null,null,null,null,null,null,null,0,0,0,0,0,0]
[null,null,null,null,null,null,null,null,null,null,0,0,0,0,0,0]
[null,null,null,null,null,null,null,null,null,null,0,0,0,0,0,0]
[null,null,null,null,null,null,null,null,null,null,0,0,0,0,0,0]
[null,null,null,null,null,null,null,null,null,null,0,0,0,0,0,0]
[null,null,null,null,null,null,null,null,null,null,0,0,0,0,0,0]
[null,null,null,null,null,null,null,null,null,null,0,0,0,0,0,0]
[null,null,null,null,null,null,null,null,null,null,0,0,0,0,0,0]
[null,null,null,null,null,null,null,null,null,null,0,0,0,0,0,0]
[null,null,null,null,null,null,null,null,null,null,0,0,0,0,0,0]
[null,null,null,null,null,null,null,null,null,null,0,0,0,0,0,0]
[null,null,null,null,null,null,null,null,null,null,0,0,0,0,0,0]
[null,null,null,null,null,null,null,null,null,null,0,0,0,0,0,0]
[null,null,null,null,null,null,null,null,null,null,0,0,0,0,0,0]
[null,null,null,null,null,null,null,null,null,null,0,0,0,0,0,0]
[null,null,null,null,null,null,null,null,null,null,0,0,0,0,0,0]
[null,null,null,null,null,null,null,null,null,null,0,0,0,0,0,0]
[null,null,null,null,null,null,null,null,null,null,0,0,0,0,0,0]
[null,null,null,null,null,null,null,null,null,null,0,0,0,0,0,0]
[null,null,null,null,null,null,null,null,null,null,0,0,0,0,0,0]
[null,null,null,null,null,null,null,null,null,null,0,0,0,0,0,0]
[null,null,null,null,null,null,null,null,null,null,0,0,0,0,0,0]
[null,null,null,null,null,null,null,null,null,null,0,0,0,0,0,0]
[null,null,null,null,null,null,null,null,null,null,0,0,0,0,0,0]
[null,null,null,null,null,null,null,null,null,null,0,0,0,0,0,0]
[null,null,null,null,null,null,null,null,null,null,0,0,0,0,0,0]
[null,null,null,null,null,null,null,null,null,null,0,0,0,0,0,0]
[null,null,null,null,null,null,null,null,null,null,0,0,0,0,0,0]
[null,null,null,null,null,null,null,null,null,null,0,0,0,0,0,0]
[null,null,null,null,null,null,null,null,null,null,0,0,0,0,0,0]
[null,null,null,null,null,null,null,null,null,null,0,0,0,0,0,0]
[null,null,null,null,null,null,null,null,null,null,0,0,0,0,0,0]
[null,null,null,null,null,null,null,null,null,null,0,0,0,0,0,0]
[null,null,null,null,null,null,null,null,null,null,0,0,0,0,0,0]
[null,null,null,null,null,null,null,null,null,null,0,0,0,0,0,0]
[null,null,null,null,null,null,null,null,null,null,0,0,0,0,0,0]
[null,null,null,null,null,null,null,null,null,null,0,0,0,0,0,0]
[null,null,null,null,null,null,null,null,null,null,0,0,0,0,0,0]
[null,null,null,null,null,null,null,null,null,null,0,0,0,0,0,0]
[null,null,null,null,null,null,null,null,null,null,{"$f":"E1218*wDraagvlak*CDraagvlak","v":0},{"$f":"F1218*wImpact*CImpact","v":0},{"$f":"G1218*wBereikbaarheid*CBereikbaar","v":0},{"$f":"H1218*wVerweving*CVerweving","v":0},0,{"$f":"J1218*wUrgentie*CUrgentie","v":0}]
[null,null,null,null,null,null,null,null,null,null,0,0,0,0,{"$f":"I1219*wLeegstand*CLeegstand","v":0},0]
[null,null,null,null,null,null,null,null,null,null,0,0,0,0,0,0]
[null,null,null,null,null,null,null,null,null,null,0,0,0,0,0,0]
[null,null,null,null,null,null,null,null,null,null,0,0,0,0,0,0]
[null,null,null,null,null,null,null,null,null,null,0,0,0,0,0,0]
[null,null,null,null,null,null,null,null,null,null,0,0,0,0,0,0]
[null,null,null,null,null,null,null,null,null,null,0,0,0,0,0,0]
[null,null,null,null,null,null,null,null,null,null,0,0,0,0,0,0]
[null,null,null,null,null,null,null,null,null,null,0,0,0,0,0,0]
[null,null,null,null,null,null,null,null,null,null,0,0,0,0,0,0]
[null,null,null,null,null,null,null,null,null,null,0,0,0,0,0,0]
[null,null,null,null,null,null,null,null,null,null,0,0,0,0,0,0]
[null,null,null,null,null,null,null,null,null,null,0,0,0,0,0,0]
[null,null,null,null,null,null,null,null,null,null,0,0,0,0,0,0]
[null,null,null,null,null,null,null,null,null,null,0,0,0,0,0,0]
[null,null,null,null,null,null,null,null,null,null,0,0,0,0,0,0]
[null,null,null,null,null,null,null,null,null,null,0,0,0,0,0,0]
[null,null,null,null,null,null,null,null,null,null,0,0,0,0,0,0]
[null,null,null,null,null,null,null,null,null,null,0,0,0,0,0,0]
[null,null,null,null,null,null,null,null,null,null,0,0,0,0,0,0]
[null,null,null,null,null,null,null,null,null,null,0,0,0,0,0,0]
[null,null,null,null,null,null,null,null,null,null,0,0,0,0,0,0]
[null,null,null,null,null,null,null,null,null,null,0,0,0,0,0,0]
[null,null,null,null,null,null,null,null,null,null,0,0,0,0,0,0]
[null,null,null,null,null,null,null,null,null,null,0,0,0,0,0,0]
[null,null,null,null,null,null,null,null,null,null,0,0,0,0,0,0]
[null,null,null,null,null,null,null,null,null,null,0,0,0,0,0,0]
[null,null,null,null,null,null,null,null,null,null,0,0,0,0,0,0]
[null,null,null,null,null,null,null,null,null,null,0,0,0,0,0,0]
[null,null,null,null,null,null,null,null,null,null,0,0,0,0,0,0]
[null,null,null,null,null,null,null,null,null,null,0,0,0,0,0,0]
[null,null,null,null,null,null,null,null,null,null,0,0,0,0,0,0]
[null,null,null,null,null,null,null,null,null,null,0,0,0,0,0,0]
[null,null,null,null,null,null,null,null,null,null,0,0,0,0,0,0]
[null,null,null,null,null,null,null,null,null,null,0,0,0,0,0,0]
[null,null,null,null,null,null,null,null,null,null,0,0,0,0,0,0]
[null,null,null,null,null,null,null,null,null,null,0,0,0,0,0,0]
[null,null,null,null,null,null,null,null,null,null,0,0,0,0,0,0]
[null,null,null,null,null,null,null,null,null,null,0,0,0,0,0,0]
[null,null,null,null,null,null,null,null,null,null,0,0,0,0,0,0]
[null,null,null,null,null,null,null,null,null,null,0,0,0,0,0,0]
[null,null,null,null,null,null,null,null,null,null,0,0,0,0,0,0]
[null,null,null,null,null,null,null,null,null,null,0,0,0,0,0,0]
[null,null,null,null,null,null,null,null,null,null,0,0,0,0,0,0]
[null,null,null,null,null,null,null,null,null,null,0,0,0,0,0,0]
[null,null,null,null,null,null,null,null,null,null,0,0,0,0,0,0]
[null,null,null,null,null,null,null,null,null,null,0,0,0,0,0,0]
[null,null,null,null,null,null,null,null,null,null,0,0,0,0,0,0]
[null,null,null,null,null,null,null,null,null,null,0,0,0,0,0,0]
[null,null,null,null,null,null,null,null,null,null,0,0,0,0,0,0]
[null,null,null,null,null,null,null,null,null,null,0,0,0,0,0,0]
[null,null,null,null,null,null,null,null,null,null,0,0,0,0,0,0]
[null,null,null,null,null,null,null,null,null,null,0,0,0,0,0,0]
[null,null,null,null,null,null,null,null,null,null,0,0,0,0,0,0]
[null,null,null,null,null,null,null,null,null,null,0,0,0,0,0,0]
[null,null,null,null,null,null,null,null,null,null,0,0,0,0,0,0]
[null,null,null,null,null,null,null,null,null,null,0,0,0,0,0,0]
[null,null,null,null,null,null,null,null,null,null,0,0,0,0,0,0]
[null,null,null,null,null,null,null,null,null,null,0,0,0,0,0,0]
[null,null,null,null,null,null,null,null,null,null,0,0,0,0,0,0]
[null,null,null,null,null,null,null,null,null,null,0,0,0,0,0,0]
[null,null,null,null,null,null,null,null,null,null,0,0,0,0,0,0]
[null,null,null,null,null,null,null,null,null,null,0,0,0,0,0,0]
[null,null,null,null,null,null,null,null,null,null,{"$f":"E1282*wDraagvlak*CDraagvlak","v":0},{"$f":"F1282*wImpact*CImpact","v":0},{"$f":"G1282*wBereikbaarheid*CBereikbaar","v":0},{"$f":"H1282*wVerweving*CVerweving","v":0},0,{"$f":"J1282*wUrgentie*CUrgentie","v":0}]
[null,null,null,null,null,null,null,null,null,null,0,0,0,0,{"$f":"I1283*wLeegstand*CLeegstand","v":0},0]
[null,null,null,null,null,null,null,null,null,null,0,0,0,0,0,0]
[null,null,null,null,null,null,null,null,null,null,0,0,0,0,0,0]
[null,null,null,null,null,null,null,null,null,null,0,0,0,0,0,0]
[null,null,null,null,null,null,null,null,null,null,0,0,0,0,0,0]
[null,null,null,null,null,null,null,null,null,null,0,0,0,0,0,0]
[null,null,null,null,null,null,null,null,null,null,0,0,0,0,0,0]
[null,null,null,null,null,null,null,null,null,null,0,0,0,0,0,0]
[null,null,null,null,null,null,null,null,null,null,0,0,0,0,0,0]
[null,null,null,null,null,null,null,null,null,null,0,0,0,0,0,0]
[null,null,null,null,null,null,null,null,null,null,0,0,0,0,0,0]
[null,null,null,null,null,null,null,null,null,null,0,0,0,0,0,0]
[null,null,null,null,null,null,null,null,null,null,0,0,0,0,0,0]
[null,null,null,null,null,null,null,null,null,null,0,0,0,0,0,0]
[null,null,null,null,null,null,null,null,null,null,0,0,0,0,0,0]
[null,null,null,null,null,null,null,null,null,null,0,0,0,0,0,0]
[null,null,null,null,null,null,null,null,null,null,0,0,0,0,0,0]
[null,null,null,null,null,null,null,null,null,null,0,0,0,0,0,0]
[null,null,null,null,null,null,null,null,null,null,0,0,0,0,0,0]
[null,null,null,null,null,null,null,null,null,null,0,0,0,0,0,0]
[null,null,null,null,null,null,null,null,null,null,0,0,0,0,0,0]
[null,null,null,null,null,null,null,null,null,null,0,0,0,0,0,0]
[null,null,null,null,null,null,null,null,null,null,0,0,0,0,0,0]
[null,null,null,null,null,null,null,null,null,null,0,0,0,0,0,0]
[null,null,null,null,null,null,null,null,null,null,0,0,0,0,0,0]
[null,null,null,null,null,null,null,null,null,null,0,0,0,0,0,0]
[null,null,null,null,null,null,null,null,null,null,0,0,0,0,0,0]
[null,null,null,null,null,null,null,null,null,null,0,0,0,0,0,0]
[null,null,null,null,null,null,null,null,null,null,0,0,0,0,0,0]
[null,null,null,null,null,null,null,null,null,null,0,0,0,0,0,0]
[null,null,null,null,null,null,null,null,null,null,0,0,0,0,0,0]
[null,null,null,null,null,null,null,null,null,null,0,0,0,0,0,0]
[null,null,null,null,null,null,null,null,null,null,0,0,0,0,0,0]
[null,null,null,null,null,null,null,null,null,null,0,0,0,0,0,0]
[null,null,null,null,null,null,null,null,null,null,0,0,0,0,0,0]
[null,null,null,null,null,null,null,null,null,null,0,0,0,0,0,0]
[null,null,null,null,null,null,null,null,null,null,0,0,0,0,0,0]
[null,null,null,null,null,null,null,null,null,null,0,0,0,0,0,0]
[null,null,null,null,null,null,null,null,null,null,0,0,0,0,0,0]
[null,null,null,null,null,null,null,null,null,null,0,0,0,0,0,0]
[null,null,null,null,null,null,null,null,null,null,0,0,0,0,0,0]
[null,null,null,null,null,null,null,null,null,null,0,0,0,0,0,0]
[null,null,null,null,null,null,null,null,null,null,0,0,0,0,0,0]
[null,null,null,null,null,null,null,null,null,null,0,0,0,0,0,0]
[null,null,null,null,null,null,null,null,null,null,0,0,0,0,0,0]
[null,null,null,null,null,null,null,null,null,null,0,0,0,0,0,0]
[null,null,null,null,null,null,null,null,null,null,0,0,0,0,0,0]
[null,null,null,null,null,null,null,null,null,null,0,0,0,0,0,0]
[null,null,null,null,null,null,null,null,null,null,0,0,0,0,0,0]
[null,null,null,null,null,null,null,null,null,null,0,0,0,0,0,0]
[null,null,null,null,null,null,null,null,null,null,0,0,0,0,0,0]
[null,null,null,null,null,null,null,null,null,null,0,0,0,0,0,0]
[null,null,null,null,null,null,null,null,null,null,0,0,0,0,0,0]
[null,null,null,null,null,null,null,null,null,null,0,0,0,0,0,0]
[null,null,null,null,null,null,null,null,null,null,0,0,0,0,0,0]
[null,null,null,null,null,null,null,null,null,null,0,0,0,0,0,0]
[null,null,null,null,null,null,null,null,null,null,0,0,0,0,0,0]
[null,null,null,null,null,null,null,null,null,null,0,0,0,0,0,0]
[null,null,null,null,null,null,null,null,null,null,0,0,0,0,0,0]
[null,null,null,null,null,null,null,null,null,null,0,0,0,0,0,0]
[null,null,null,null,null,null,null,null,null,null,0,0,0,0,0,0]
[null,null,null,null,null,null,null,null,null,null,0,0,0,0,0,0]
[null,null,null,null,null,null,null,null,null,null,0,0,0,0,0,0]
[null,null,null,null,null,null,null,null,null,null,{"$f":"E1346*wDraagvlak*CDraagvlak","v":0},{"$f":"F1346*wImpact*CImpact","v":0},{"$f":"G1346*wBereikbaarheid*CBereikbaar","v":0},{"$f":"H1346*wVerweving*CVerweving","v":0},0,{"$f":"J1346*wUrgentie*CUrgentie","v":0}]
[null,null,null,null,null,null,null,null,null,null,0,0,0,0,{"$f":"I1347*wLeegstand*CLeegstand","v":0},0]
[null,null,null,null,null,null,null,null,null,null,0,0,0,0,0,0]
[null,null,null,null,null,null,null,null,null,null,0,0,0,0,0,0]
[null,null,null,null,null,null,null,null,null,null,0,0,0,0,0,0]
[null,null,null,null,null,null,null,null,null,null,0,0,0,0,0,0]
[null,null,null,null,null,null,null,null,null,null,0,0,0,0,0,0]
[null,null,null,null,null,null,null,null,null,null,0,0,0,0,0,0]
[null,null,null,null,null,null,null,null,null,null,0,0,0,0,0,0]
[null,null,null,null,null,null,null,null,null,null,0,0,0,0,0,0]
[null,null,null,null,null,null,null,null,null,null,0,0,0,0,0,0]
[null,null,null,null,null,null,null,null,null,null,0,0,0,0,0,0]
[null,null,null,null,null,null,null,null,null,null,0,0,0,0,0,0]
[null,null,null,null,null,null,null,null,null,null,0,0,0,0,0,0]
[null,null,null,null,null,null,null,null,null,null,0,0,0,0,0,0]
[null,null,null,null,null,null,null,null,null,null,0,0,0,0,0,0]
[null,null,null,null,null,null,null,null,null,null,0,0,0,0,0,0]
[null,null,null,null,null,null,null,null,null,null,0,0,0,0,0,0]
[null,null,null,null,null,null,null,null,null,null,0,0,0,0,0,0]
[null,null,null,null,null,null,null,null,null,null,0,0,0,0,0,0]
[null,null,null,null,null,null,null,null,null,null,0,0,0,0,0,0]
[null,null,null,null,null,null,null,null,null,null,0,0,0,0,0,0]
[null,null,null,null,null,null,null,null,null,null,0,0,0,0,0,0]
[null,null,null,null,null,null,null,null,null,null,0,0,0,0,0,0]
[null,null,null,null,null,null,null,null,null,null,0,0,0,0,0,0]
[null,null,null,null,null,null,null,null,null,null,0,0,0,0,0,0]
[null,null,null,null,null,null,null,null,null,null,0,0,0,0,0,0]
[null,null,null,null,null,null,null,null,null,null,0,0,0,0,0,0]
[null,null,null,null,null,null,null,null,null,null,0,0,0,0,0,0]
[null,null,null,null,null,null,null,null,null,null,0,0,0,0,0,0]
[null,null,null,null,null,null,null,null,null,null,0,0,0,0,0,0]
[null,null,null,null,null,null,null,null,null,null,0,0,0,0,0,0]
[null,null,null,null,null,null,null,null,null,null,0,0,0,0,0,0]
[null,null,null,null,null,null,null,null,null,null,0,0,0,0,0,0]
[null,null,null,null,null,null,null,null,null,null,0,0,0,0,0,0]
[null,null,null,null,null,null,null,null,null,null,0,0,0,0,0,0]
[null,null,null,null,null,null,null,null,null,null,0,0,0,0,0,0]
[null,null,null,null,null,null,null,null,null,null,0,0,0,0,0,0]
[null,null,null,null,null,null,null,null,null,null,0,0,0,0,0,0]
[null,null,null,null,null,null,null,null,null,null,0,0,0,0,0,0]
[null,null,null,null,null,null,null,null,null,null,0,0,0,0,0,0]
[null,null,null,null,null,null,null,null,null,null,0,0,0,0,0,0]
[null,null,null,null,null,null,null,null,null,null,0,0,0,0,0,0]
[null,null,null,null,null,null,null,null,null,null,0,0,0,0,0,0]
[null,null,null,null,null,null,null,null,null,null,0,0,0,0,0,0]
[null,null,null,null,null,null,null,null,null,null,0,0,0,0,0,0]
[null,null,null,null,null,null,null,null,null,null,0,0,0,0,0,0]
[null,null,null,null,null,null,null,null,null,null,0,0,0,0,0,0]
[null,null,null,null,null,null,null,null,null,null,0,0,0,0,0,0]
[null,null,null,null,null,null,null,null,null,null,0,0,0,0,0,0]
[null,null,null,null,null,null,null,null,null,null,0,0,0,0,0,0]
[null,null,null,null,null,null,null,null,null,null,0,0,0,0,0,0]
[null,null,null,null,null,null,null,null,null,null,0,0,0,0,0,0]
[null,null,null,null,null,null,null,null,null,null,0,0,0,0,0,0]
[null,null,null,null,null,null,null,null,null,null,0,0,0,0,0,0]
[null,null,null,null,null,null,null,null,null,null,0,0,0,0,0,0]
[null,null,null,null,null,null,null,null,null,null,0,0,0,0,0,0]
[null,null,null,null,null,null,null,null,null,null,0,0,0,0,0,0]
[null,null,null,null,null,null,null,null,null,null,0,0,0,0,0,0]
[null,null,null,null,null,null,null,null,null,null,0,0,0,0,0,0]
[null,null,null,null,null,null,null,null,null,null,0,0,0,0,0,0]
[null,null,null,null,null,null,null,null,null,null,0,0,0,0,0,0]
[null,null,null,null,null,null,null,null,null,null,0,0,0,0,0,0]
[null,null,null,null,null,null,null,null,null,null,0,0,0,0,0,0]
[null,null,null,null,null,null,null,null,null,null,{"$f":"E1410*wDraagvlak*CDraagvlak","v":0},{"$f":"F1410*wImpact*CImpact","v":0},{"$f":"G1410*wBereikbaarheid*CBereikbaar","v":0},{"$f":"H1410*wVerweving*CVerweving","v":0},0,{"$f":"J1410*wUrgentie*CUrgentie","v":0}]
[null,null,null,null,null,null,null,null,null,null,0,0,0,0,{"$f":"I1411*wLeegstand*CLeegstand","v":0},0]
[null,null,null,null,null,null,null,null,null,null,0,0,0,0,0,0]
[null,null,null,null,null,null,null,null,null,null,0,0,0,0,0,0]
[null,null,null,null,null,null,null,null,null,null,0,0,0,0,0,0]
[null,null,null,null,null,null,null,null,null,null,0,0,0,0,0,0]
[null,null,null,null,null,null,null,null,null,null,0,0,0,0,0,0]
[null,null,null,null,null,null,null,null,null,null,0,0,0,0,0,0]
[null,null,null,null,null,null,null,null,null,null,0,0,0,0,0,0]
[null,null,null,null,null,null,null,null,null,null,0,0,0,0,0,0]
[null,null,null,null,null,null,null,null,null,null,0,0,0,0,0,0]
[null,null,null,null,null,null,null,null,null,null,0,0,0,0,0,0]
[null,null,null,null,null,null,null,null,null,null,0,0,0,0,0,0]
[null,null,null,null,null,null,null,null,null,null,0,0,0,0,0,0]
[null,null,null,null,null,null,null,null,null,null,0,0,0,0,0,0]
[null,null,null,null,null,null,null,null,null,null,0,0,0,0,0,0]
[null,null,null,null,null,null,null,null,null,null,0,0,0,0,0,0]
[null,null,null,null,null,null,null,null,null,null,0,0,0,0,0,0]
[null,null,null,null,null,null,null,null,null,null,0,0,0,0,0,0]
[null,null,null,null,null,null,null,null,null,null,0,0,0,0,0,0]
[null,null,null,null,null,null,null,null,null,null,0,0,0,0,0,0]
[null,null,null,null,null,null,null,null,null,null,0,0,0,0,0,0]
[null,null,null,null,null,null,null,null,null,null,0,0,0,0,0,0]
[null,null,null,null,null,null,null,null,null,null,0,0,0,0,0,0]
[null,null,null,null,null,null,null,null,null,null,0,0,0,0,0,0]
[null,null,null,null,null,null,null,null,null,null,0,0,0,0,0,0]
[null,null,null,null,null,null,null,null,null,null,0,0,0,0,0,0]
[null,null,null,null,null,null,null,null,null,null,0,0,0,0,0,0]
[null,null,null,null,null,null,null,null,null,null,0,0,0,0,0,0]
[null,null,null,null,null,null,null,null,null,null,0,0,0,0,0,0]
[null,null,null,null,null,null,null,null,null,null,0,0,0,0,0,0]
[null,null,null,null,null,null,null,null,null,null,0,0,0,0,0,0]
[null,null,null,null,null,null,null,null,null,null,0,0,0,0,0,0]
[null,null,null,null,null,null,null,null,null,null,0,0,0,0,0,0]
[null,null,null,null,null,null,null,null,null,null,0,0,0,0,0,0]
[null,null,null,null,null,null,null,null,null,null,0,0,0,0,0,0]
[null,null,null,null,null,null,null,null,null,null,0,0,0,0,0,0]
[null,null,null,null,null,null,null,null,null,null,0,0,0,0,0,0]
[null,null,null,null,null,null,null,null,null,null,0,0,0,0,0,0]
[null,null,null,null,null,null,null,null,null,null,0,0,0,0,0,0]
[null,null,null,null,null,null,null,null,null,null,0,0,0,0,0,0]
[null,null,null,null,null,null,null,null,null,null,0,0,0,0,0,0]
[null,null,null,null,null,null,null,null,null,null,0,0,0,0,0,0]
[null,null,null,null,null,null,null,null,null,null,0,0,0,0,0,0]
[null,null,null,null,null,null,null,null,null,null,0,0,0,0,0,0]
[null,null,null,null,null,null,null,null,null,null,0,0,0,0,0,0]
[null,null,null,null,null,null,null,null,null,null,0,0,0,0,0,0]
[null,null,null,null,null,null,null,null,null,null,0,0,0,0,0,0]
[null,null,null,null,null,null,null,null,null,null,0,0,0,0,0,0]
[null,null,null,null,null,null,null,null,null,null,0,0,0,0,0,0]
[null,null,null,null,null,null,null,null,null,null,0,0,0,0,0,0]
[null,null,null,null,null,null,null,null,null,null,0,0,0,0,0,0]
[null,null,null,null,null,null,null,null,null,null,0,0,0,0,0,0]
[null,null,null,null,null,null,null,null,null,null,0,0,0,0,0,0]
[null,null,null,null,null,null,null,null,null,null,0,0,0,0,0,0]
[null,null,null,null,null,null,null,null,null,null,0,0,0,0,0,0]
[null,null,null,null,null,null,null,null,null,null,0,0,0,0,0,0]
[null,null,null,null,null,null,null,null,null,null,0,0,0,0,0,0]
[null,null,null,null,null,null,null,null,null,null,0,0,0,0,0,0]
[null,null,null,null,null,null,null,null,null,null,0,0,0,0,0,0]
[null,null,null,null,null,null,null,null,null,null,0,0,0,0,0,0]
[null,null,null,null,null,null,null,null,null,null,0,0,0,0,0,0]
[null,null,null,null,null,null,null,null,null,null,0,0,0,0,0,0]
[null,null,null,null,null,null,null,null,null,null,0,0,0,0,0,0]
[null,null,null,null,null,null,null,null,null,null,{"$f":"E1474*wDraagvlak*CDraagvlak","v":0},{"$f":"F1474*wImpact*CImpact","v":0},{"$f":"G1474*wBereikbaarheid*CBereikbaar","v":0},{"$f":"H1474*wVerweving*CVerweving","v":0},0,{"$f":"J1474*wUrgentie*CUrgentie","v":0}]
[null,null,null,null,null,null,null,null,null,null,0,0,0,0,{"$f":"I1475*wLeegstand*CLeegstand","v":0},0]
[null,null,null,null,null,null,null,null,null,null,0,0,0,0,0,0]
[null,null,null,null,null,null,null,null,null,null,0,0,0,0,0,0]
[null,null,null,null,null,null,null,null,null,null,0,0,0,0,0,0]
[null,null,null,null,null,null,null,null,null,null,0,0,0,0,0,0]
[null,null,null,null,null,null,null,null,null,null,0,0,0,0,0,0]
[null,null,null,null,null,null,null,null,null,null,0,0,0,0,0,0]
[null,null,null,null,null,null,null,null,null,null,0,0,0,0,0,0]
[null,null,null,null,null,null,null,null,null,null,0,0,0,0,0,0]
[null,null,null,null,null,null,null,null,null,null,0,0,0,0,0,0]
[null,null,null,null,null,null,null,null,null,null,0,0,0,0,0,0]
[null,null,null,null,null,null,null,null,null,null,0,0,0,0,0,0]
[null,null,null,null,null,null,null,null,null,null,0,0,0,0,0,0]
[null,null,null,null,null,null,null,null,null,null,0,0,0,0,0,0]
[null,null,null,null,null,null,null,null,null,null,0,0,0,0,0,0]
[null,null,null,null,null,null,null,null,null,null,0,0,0,0,0,0]
[null,null,null,null,null,null,null,null,null,null,0,0,0,0,0,0]
[null,null,null,null,null,null,null,null,null,null,0,0,0,0,0,0]
[null,null,null,null,null,null,null,null,null,null,0,0,0,0,0,0]
[null,null,null,null,null,null,null,null,null,null,0,0,0,0,0,0]
[null,null,null,null,null,null,null,null,null,null,0,0,0,0,0,0]
[null,null,null,null,null,null,null,null,null,null,0,0,0,0,0,0]
[null,null,null,null,null,null,null,null,null,null,0,0,0,0,0,0]
[null,null,null,null,null,null,null,null,null,null,0,0,0,0,0,0]
[null,null,null,null,null,null,null,null,null,null,0,0,0,0,0,0]
[null,null,null,null,null,null,null,null,null,null,0,0,0,0,0,0]
[null,null,null,null,null,null,null,null,null,null,0,0,0,0,0,0]
[null,null,null,null,null,null,null,null,null,null,0,0,0,0,0,0]
[null,null,null,null,null,null,null,null,null,null,0,0,0,0,0,0]
[null,null,null,null,null,null,null,null,null,null,0,0,0,0,0,0]
[null,null,null,null,null,null,null,null,null,null,0,0,0,0,0,0]
[null,null,null,null,null,null,null,null,null,null,0,0,0,0,0,0]
[null,null,null,null,null,null,null,null,null,null,0,0,0,0,0,0]
[null,null,null,null,null,null,null,null,null,null,0,0,0,0,0,0]
[null,null,null,null,null,null,null,null,null,null,0,0,0,0,0,0]
[null,null,null,null,null,null,null,null,null,null,0,0,0,0,0,0]
[null,null,null,null,null,null,null,null,null,null,0,0,0,0,0,0]
[null,null,null,null,null,null,null,null,null,null,0,0,0,0,0,0]
[null,null,null,null,null,null,null,null,null,null,0,0,0,0,0,0]
[null,null,null,null,null,null,null,null,null,null,0,0,0,0,0,0]
[null,null,null,null,null,null,null,null,null,null,0,0,0,0,0,0]
[null,null,null,null,null,null,null,null,null,null,0,0,0,0,0,0]
[null,null,null,null,null,null,null,null,null,null,0,0,0,0,0,0]
[null,null,null,null,null,null,null,null,null,null,0,0,0,0,0,0]
[null,null,null,null,null,null,null,null,null,null,0,0,0,0,0,0]
[null,null,null,null,null,null,null,null,null,null,0,0,0,0,0,0]
[null,null,null,null,null,null,null,null,null,null,0,0,0,0,0,0]
[null,null,null,null,null,null,null,null,null,null,0,0,0,0,0,0]
[null,null,null,null,null,null,null,null,null,null,0,0,0,0,0,0]
[null,null,null,null,null,null,null,null,null,null,0,0,0,0,0,0]
[null,null,null,null,null,null,null,null,null,null,0,0,0,0,0,0]
[null,null,null,null,null,null,null,null,null,null,0,0,0,0,0,0]
[null,null,null,null,null,null,null,null,null,null,0,0,0,0,0,0]
[null,null,null,null,null,null,null,null,null,null,0,0,0,0,0,0]
[null,null,null,null,null,null,null,null,null,null,0,0,0,0,0,0]
[null,null,null,null,null,null,null,null,null,null,0,0,0,0,0,0]
[null,null,null,null,null,null,null,null,null,null,0,0,0,0,0,0]
[null,null,null,null,null,null,null,null,null,null,0,0,0,0,0,0]
[null,null,null,null,null,null,null,null,null,null,0,0,0,0,0,0]
[null,null,null,null,null,null,null,null,null,null,0,0,0,0,0,0]
[null,null,null,null,null,null,null,null,null,null,0,0,0,0,0,0]
[null,null,null,null,null,null,null,null,null,null,0,0,0,0,0,0]
[null,null,null,null,null,null,null,null,null,null,0,0,0,0,0,0]
[null,null,null,null,null,null,null,null,null,null,{"$f":"E1538*wDraagvlak*CDraagvlak","v":0},{"$f":"F1538*wImpact*CImpact","v":0},{"$f":"G1538*wBereikbaarheid*CBereikbaar","v":0},{"$f":"H1538*wVerweving*CVerweving","v":0},0,{"$f":"J1538*wUrgentie*CUrgentie","v":0}]
[null,null,null,null,null,null,null,null,null,null,0,0,0,0,{"$f":"I1539*wLeegstand*CLeegstand","v":0},0]
[null,null,null,null,null,null,null,null,null,null,0,0,0,0,0,0]
[null,null,null,null,null,null,null,null,null,null,0,0,0,0,0,0]
[null,null,null,null,null,null,null,null,null,null,0,0,0,0,0,0]
[null,null,null,null,null,null,null,null,null,null,0,0,0,0,0,0]
[null,null,null,null,null,null,null,null,null,null,0,0,0,0,0,0]
[null,null,null,null,null,null,null,null,null,null,0,0,0,0,0,0]
[null,null,null,null,null,null,null,null,null,null,0,0,0,0,0,0]
[null,null,null,null,null,null,null,null,null,null,0,0,0,0,0,0]
[null,null,null,null,null,null,null,null,null,null,0,0,0,0,0,0]
[null,null,null,null,null,null,null,null,null,null,0,0,0,0,0,0]
[null,null,null,null,null,null,null,null,null,null,0,0,0,0,0,0]
[null,null,null,null,null,null,null,null,null,null,0,0,0,0,0,0]
[null,null,null,null,null,null,null,null,null,null,0,0,0,0,0,0]
[null,null,null,null,null,null,null,null,null,null,0,0,0,0,0,0]
[null,null,null,null,null,null,null,null,null,null,0,0,0,0,0,0]
[null,null,null,null,null,null,null,null,null,null,0,0,0,0,0,0]
[null,null,null,null,null,null,null,null,null,null,0,0,0,0,0,0]
[null,null,null,null,null,null,null,null,null,null,0,0,0,0,0,0]
[null,null,null,null,null,null,null,null,null,null,0,0,0,0,0,0]
[null,null,null,null,null,null,null,null,null,null,0,0,0,0,0,0]
[null,null,null,null,null,null,null,null,null,null,0,0,0,0,0,0]
[null,null,null,null,null,null,null,null,null,null,0,0,0,0,0,0]
[null,null,null,null,null,null,null,null,null,null,0,0,0,0,0,0]
[null,null,null,null,null,null,null,null,null,null,0,0,0,0,0,0]
[null,null,null,null,null,null,null,null,null,null,0,0,0,0,0,0]
[null,null,null,null,null,null,null,null,null,null,0,0,0,0,0,0]
[null,null,null,null,null,null,null,null,null,null,0,0,0,0,0,0]
[null,null,null,null,null,null,null,null,null,null,0,0,0,0,0,0]
[null,null,null,null,null,null,null,null,null,null,0,0,0,0,0,0]
[null,null,null,null,null,null,null,null,null,null,0,0,0,0,0,0]
[null,null,null,null,null,null,null,null,null,null,0,0,0,0,0,0]
[null,null,null,null,null,null,null,null,null,null,0,0,0,0,0,0]
[null,null,null,null,null,null,null,null,null,null,0,0,0,0,0,0]
[null,null,null,null,null,null,null,null,null,null,0,0,0,0,0,0]
[null,null,null,null,null,null,null,null,null,null,0,0,0,0,0,0]
[null,null,null,null,null,null,null,null,null,null,0,0,0,0,0,0]
[null,null,null,null,null,null,null,null,null,null,0,0,0,0,0,0]
[null,null,null,null,null,null,null,null,null,null,0,0,0,0,0,0]
[null,null,null,null,null,null,null,null,null,null,0,0,0,0,0,0]
[null,null,null,null,null,null,null,null,null,null,0,0,0,0,0,0]
[null,null,null,null,null,null,null,null,null,null,0,0,0,0,0,0]
[null,null,null,null,null,null,null,null,null,null,0,0,0,0,0,0]
[null,null,null,null,null,null,null,null,null,null,0,0,0,0,0,0]
[null,null,null,null,null,null,null,null,null,null,0,0,0,0,0,0]
[null,null,null,null,null,null,null,null,null,null,0,0,0,0,0,0]
[null,null,null,null,null,null,null,null,null,null,0,0,0,0,0,0]
[null,null,null,null,null,null,null,null,null,null,0,0,0,0,0,0]
[null,null,null,null,null,null,null,null,null,null,0,0,0,0,0,0]
[null,null,null,null,null,null,null,null,null,null,0,0,0,0,0,0]
[null,null,null,null,null,null,null,null,null,null,0,0,0,0,0,0]
[null,null,null,null,null,null,null,null,null,null,0,0,0,0,0,0]
[null,null,null,null,null,null,null,null,null,null,0,0,0,0,0,0]
[null,null,null,null,null,null,null,null,null,null,0,0,0,0,0,0]
[null,null,null,null,null,null,null,null,null,null,0,0,0,0,0,0]
[null,null,null,null,null,null,null,null,null,null,0,0,0,0,0,0]
[null,null,null,null,null,null,null,null,null,null,0,0,0,0,0,0]
[null,null,null,null,null,null,null,null,null,null,0,0,0,0,0,0]
[null,null,null,null,null,null,null,null,null,null,0,0,0,0,0,0]
[null,null,null,null,null,null,null,null,null,null,0,0,0,0,0,0]
[null,null,null,null,null,null,null,null,null,null,0,0,0,0,0,0]
[null,null,null,null,null,null,null,null,null,null,0,0,0,0,0,0]
[null,null,null,null,null,null,null,null,null,null,0,0,0,0,0,0]
[null,null,null,null,null,null,null,null,null,null,{"$f":"E1602*wDraagvlak*CDraagvlak","v":0},{"$f":"F1602*wImpact*CImpact","v":0},{"$f":"G1602*wBereikbaarheid*CBereikbaar","v":0},{"$f":"H1602*wVerweving*CVerweving","v":0},0,{"$f":"J1602*wUrgentie*CUrgentie","v":0}]
[null,null,null,null,null,null,null,null,null,null,0,0,0,0,{"$f":"I1603*wLeegstand*CLeegstand","v":0},0]
[null,null,null,null,null,null,null,null,null,null,0,0,0,0,0,0]
[null,null,null,null,null,null,null,null,null,null,0,0,0,0,0,0]
[null,null,null,null,null,null,null,null,null,null,0,0,0,0,0,0]
[null,null,null,null,null,null,null,null,null,null,0,0,0,0,0,0]
[null,null,null,null,null,null,null,null,null,null,0,0,0,0,0,0]
[null,null,null,null,null,null,null,null,null,null,0,0,0,0,0,0]
[null,null,null,null,null,null,null,null,null,null,0,0,0,0,0,0]
[null,null,null,null,null,null,null,null,null,null,0,0,0,0,0,0]
[null,null,null,null,null,null,null,null,null,null,0,0,0,0,0,0]
[null,null,null,null,null,null,null,null,null,null,0,0,0,0,0,0]
[null,null,null,null,null,null,null,null,null,null,0,0,0,0,0,0]
[null,null,null,null,null,null,null,null,null,null,0,0,0,0,0,0]
[null,null,null,null,null,null,null,null,null,null,0,0,0,0,0,0]
[null,null,null,null,null,null,null,null,null,null,0,0,0,0,0,0]
[null,null,null,null,null,null,null,null,null,null,0,0,0,0,0,0]
[null,null,null,null,null,null,null,null,null,null,0,0,0,0,0,0]
[null,null,null,null,null,null,null,null,null,null,0,0,0,0,0,0]
[null,null,null,null,null,null,null,null,null,null,0,0,0,0,0,0]
[null,null,null,null,null,null,null,null,null,null,0,0,0,0,0,0]
[null,null,null,null,null,null,null,null,null,null,0,0,0,0,0,0]
[null,null,null,null,null,null,null,null,null,null,0,0,0,0,0,0]
[null,null,null,null,null,null,null,null,null,null,0,0,0,0,0,0]
[null,null,null,null,null,null,null,null,null,null,0,0,0,0,0,0]
[null,null,null,null,null,null,null,null,null,null,0,0,0,0,0,0]
[null,null,null,null,null,null,null,null,null,null,0,0,0,0,0,0]
[null,null,null,null,null,null,null,null,null,null,0,0,0,0,0,0]
[null,null,null,null,null,null,null,null,null,null,0,0,0,0,0,0]
[null,null,null,null,null,null,null,null,null,null,0,0,0,0,0,0]
[null,null,null,null,null,null,null,null,null,null,0,0,0,0,0,0]
[null,null,null,null,null,null,null,null,null,null,0,0,0,0,0,0]
[null,null,null,null,null,null,null,null,null,null,0,0,0,0,0,0]
[null,null,null,null,null,null,null,null,null,null,0,0,0,0,0,0]
[null,null,null,null,null,null,null,null,null,null,0,0,0,0,0,0]
[null,null,null,null,null,null,null,null,null,null,0,0,0,0,0,0]
[null,null,null,null,null,null,null,null,null,null,0,0,0,0,0,0]
[null,null,null,null,null,null,null,null,null,null,0,0,0,0,0,0]
[null,null,null,null,null,null,null,null,null,null,0,0,0,0,0,0]
[null,null,null,null,null,null,null,null,null,null,0,0,0,0,0,0]
[null,null,null,null,null,null,null,null,null,null,0,0,0,0,0,0]
[null,null,null,null,null,null,null,null,null,null,0,0,0,0,0,0]
[null,null,null,null,null,null,null,null,null,null,0,0,0,0,0,0]
[null,null,null,null,null,null,null,null,null,null,0,0,0,0,0,0]
[null,null,null,null,null,null,null,null,null,null,0,0,0,0,0,0]
[null,null,null,null,null,null,null,null,null,null,0,0,0,0,0,0]
[null,null,null,null,null,null,null,null,null,null,0,0,0,0,0,0]
[null,null,null,null,null,null,null,null,null,null,0,0,0,0,0,0]
[null,null,null,null,null,null,null,null,null,null,0,0,0,0,0,0]
[null,null,null,null,null,null,null,null,null,null,0,0,0,0,0,0]
[null,null,null,null,null,null,null,null,null,null,0,0,0,0,0,0]
[null,null,null,null,null,null,null,null,null,null,0,0,0,0,0,0]
[null,null,null,null,null,null,null,null,null,null,0,0,0,0,0,0]
[null,null,null,null,null,null,null,null,null,null,0,0,0,0,0,0]
[null,null,null,null,null,null,null,null,null,null,0,0,0,0,0,0]
[null,null,null,null,null,null,null,null,null,null,0,0,0,0,0,0]
[null,null,null,null,null,null,null,null,null,null,0,0,0,0,0,0]
[null,null,null,null,null,null,null,null,null,null,0,0,0,0,0,0]
[null,null,null,null,null,null,null,null,null,null,0,0,0,0,0,0]
[null,null,null,null,null,null,null,null,null,null,0,0,0,0,0,0]
[null,null,null,null,null,null,null,null,null,null,0,0,0,0,0,0]
[null,null,null,null,null,null,null,null,null,null,0,0,0,0,0,0]
[null,null,null,null,null,null,null,null,null,null,0,0,0,0,0,0]
[null,null,null,null,null,null,null,null,null,null,0,0,0,0,0,0]
[null,null,null,null,null,null,null,null,null,null,{"$f":"E1666*wDraagvlak*CDraagvlak","v":0},{"$f":"F1666*wImpact*CImpact","v":0},{"$f":"G1666*wBereikbaarheid*CBereikbaar","v":0},{"$f":"H1666*wVerweving*CVerweving","v":0},0,{"$f":"J1666*wUrgentie*CUrgentie","v":0}]
[null,null,null,null,null,null,null,null,null,null,0,0,0,0,{"$f":"I1667*wLeegstand*CLeegstand","v":0},0]
[null,null,null,null,null,null,null,null,null,null,0,0,0,0,0,0]
[null,null,null,null,null,null,null,null,null,null,0,0,0,0,0,0]
[null,null,null,null,null,null,null,null,null,null,0,0,0,0,0,0]
[null,null,null,null,null,null,null,null,null,null,0,0,0,0,0,0]
[null,null,null,null,null,null,null,null,null,null,0,0,0,0,0,0]
[null,null,null,null,null,null,null,null,null,null,0,0,0,0,0,0]
[null,null,null,null,null,null,null,null,null,null,0,0,0,0,0,0]
[null,null,null,null,null,null,null,null,null,null,0,0,0,0,0,0]
[null,null,null,null,null,null,null,null,null,null,0,0,0,0,0,0]
[null,null,null,null,null,null,null,null,null,null,0,0,0,0,0,0]
[null,null,null,null,null,null,null,null,null,null,0,0,0,0,0,0]
[null,null,null,null,null,null,null,null,null,null,0,0,0,0,0,0]
[null,null,null,null,null,null,null,null,null,null,0,0,0,0,0,0]
[null,null,null,null,null,null,null,null,null,null,0,0,0,0,0,0]
[null,null,null,null,null,null,null,null,null,null,0,0,0,0,0,0]
[null,null,null,null,null,null,null,null,null,null,0,0,0,0,0,0]
[null,null,null,null,null,null,null,null,null,null,0,0,0,0,0,0]
[null,null,null,null,null,null,null,null,null,null,0,0,0,0,0,0]
[null,null,null,null,null,null,null,null,null,null,0,0,0,0,0,0]
[null,null,null,null,null,null,null,null,null,null,0,0,0,0,0,0]
[null,null,null,null,null,null,null,null,null,null,0,0,0,0,0,0]
[null,null,null,null,null,null,null,null,null,null,0,0,0,0,0,0]